{"text_format":"1","workbook":"xlsx","n_sheets":29,"sheets":["Forside","Bank NOK","Bank utenlandsk valuta","Bankavstemming 31.12.","Bankavstemming 31.12. utenl. va","Bankavstemming 31.01.","Bankavstemming 31.01. utenl. va","Kasse","Kundefordringer","Varelager","Forskuddsbetalte kostnader","Andre fordringer","Varige driftsmidler","Mellomværende nærstående","Konsernmellomværende","Immaterielle eiendeler","Langsiktige investeringer","Leverandørgjeld","Annen kortsiktig gjeld","Skattetrekk","AGA","Feriepenger","Kontrolloppstilling","MVA totalavstemming","MVA utgående avgift","MVA inngående avgift","Langsiktig gjeld","Egenkapital","Input til formler"],"not_rendered":{"charts":0,"images":3,"macros":1,"external_links":0,"defined_names":0,"comments":0,"pivot_tables":0},"unopened":[],"bounds":{"document_bytes":16777216,"sheet_cells":100000,"rows_first":2000,"rows_last":500,"rows_between":2000,"halvings":0,"cell_chars":16384,"cell_head_chars":4096},"cells_cut":0,"cells_raw":0,"read":"whole","date_system":"1900"}

{"sheet":"Forside","index":0,"n_rows":48,"n_cols":4,"rows_kept":48,"cut":false,"hidden":false,"merged":[[12,0,14,3],[47,0,60,3],[16,1,16,2],[17,1,17,2],[9,0,9,3]]}
[]
[]
[]
[]
[]
[]
[]
[]
[]
["Forbehold: Denne avstemmingsmappen er publisert 12.12.2024. Dersom det kommer endringer i satser osv. som får betydning for 2024 vil det bli publisert en oppdatert avstemmingspakke. \n"]
[]
[]
["Veiledning: \nI kolonne B (rosa felt) i oversikten nedenfor må det tas stilling til hvorvidt en regnskapslinje er relevant for selskapet eller ikke. MERK: Her skal det velges alternativer fra nedtrekksmeny. Svaret genererer relevante avstemmingsark. "]
[]
[]
[]
["Selskap"]
["År",2024]
[]
["Aktuelle regnskapslinjer","Er regnskapslinje relevant?","Annen input","Link"]
["Bank NOK"]
["Bank utenlandsk valuta"]
["Kontantkasse"]
["Kundefordringer"]
["Kundereskontro i utenlandsk valuta","Nei"]
["Avsetning kundefordringer gjøres på bakgrunn av:","%"]
["Større tapsførte kundefordringer","Nei"]
["Varelager"]
["Telling på annet tidspunkt enn regnskapsavslutning?","Nei"]
["Tidspunkt for telling ved telling på annen dato enn regnskapsavslutning",null,"xx.xx.xxxx"]
["Ukurans avsettes på bakgrunn av:","%"]
["Forskuddsbetalte kostnader"]
["Andre fordringer"]
["Varige driftsmidler"]
["Mellomværende nærstående (TS, FKV, aksjonær)"]
["Konsernmellomværende"]
["Immaterielle eiendeler"]
["Langsiktige investeringer"]
["Leverandørgjeld"]
["Leverandørgjeld i utenlandsk valuta","Nei"]
["Annen kortsiktig gjeld"]
["Lønn"]
["MVA"]
["Langsiktig gjeld"]
["Egenkapital"]
[]
[]
["Årsoppgjørspakken 2024\n\nHer er årsoppgjørspakken med avstemmingsskjemaer som kan være praktiske for dere å benytte i arbeidet med regnskapsavslutningen. \n\nVi gjør oppmerksom på at software som distribueres av PricewaterhouseCoopers AS med skjemaer, dokumenter og databaser er designet for spesielle formål og er distribuert som ”as is” programvare. Denne programvaren er kun ment til bruk for klienter og må ikke distribueres til tredjemann. Innholdet i filen er videre kun til generell veiledning. Enhver situasjon er unik og PricewaterhouseCoopers AS kan derfor ikke ta ansvar for eventuelle beslutninger som baseres på innholdet.\nVed spørsmål til innholdet i filen, ber vi dere kontakte våre revisorer.\n\nMed vennlig hilsen\nPricewaterhouseCoopers AS\n"]

{"sheet":"Bank NOK","index":1,"n_rows":200,"n_cols":7,"rows_kept":200,"cut":false,"hidden":true,"merged":[[165,1,165,2],[176,1,176,2],[185,1,185,4],[178,1,178,3],[175,1,175,2],[174,1,174,2],[173,1,173,2],[172,1,172,2],[171,1,171,2],[170,1,170,2],[169,1,169,2],[168,1,168,2],[167,1,167,2],[166,1,166,2],[199,1,201,3],[198,1,198,3],[194,1,196,3],[193,1,193,3],[129,1,129,6],[130,1,132,6],[134,1,134,6],[135,1,137,6],[139,1,139,6],[163,4,164,4],[163,3,164,3],[154,1,154,6],[155,1,157,6],[162,1,162,4],[140,1,142,6],[144,1,144,6],[115,1,117,6],[119,1,119,6],[120,1,122,6],[124,1,124,6],[125,1,127,6],[104,1,104,6],[105,1,107,6],[109,1,109,6],[110,1,112,6],[114,1,114,6],[45,1,45,6],[46,1,48,6],[36,1,38,6],[40,1,40,6],[41,1,43,6],[50,1,50,6],[51,1,53,6],[55,1,55,6],[56,1,58,6],[60,1,60,6],[0,1,1,6],[3,1,9,6],[11,1,11,6],[31,1,33,6],[35,1,35,6],[30,1,30,6],[12,6,13,6],[12,5,13,5],[163,1,163,2],[71,1,73,6],[75,1,75,6],[61,1,63,6],[86,1,86,6],[76,1,78,6],[80,1,80,6],[81,1,83,6],[65,1,65,6],[66,1,68,6],[70,1,70,6],[145,1,147,6],[149,1,149,6],[150,1,152,6],[87,5,88,5],[87,6,88,6]]}
[null,"BANK"]
[]
[]
[null,"Veiledning: \n1. Første tabell er avstemming av bankkonti med norske saldi. Fyll inn tabell 1, og forklar eventuelle avvik mellom hovedbok og årsoppgave. Det er to alternativer for å forklare avvik avhengig av omfanget åpne poster; enten å legge inn notehenvisning i kolonne G og forklare i tilhørende note nedenfor tabell (dukker opp automatisk), eller fyll inn bankavstemmingsmal som kommer i neste arkfane ved at du huker av celle D28 \"et større antall åpne poster\". Dersom du ønsker flere bankavstemminger kan du kopiere avstemmingstabellen.\n2. Fyll inn tilsvarende avstemmingstabell pr 31.01 påfølgende år. \n3. Fyll inn tredje tabell for avstemming av bankrenter"]
[]
[]
[]
[]
[]
[]
[]
[null,"1) Avstemming bankkonti pr 31.12."]
[null,"Kontonummer\nHB ","Kontonavn","Saldo på konto i hovedbok 31.12.","Saldo iht kontoutskrift bank/ årsoppgave 31.12.","Avvik mellom saldo på konto i HB og saldo iht kontoutskrift bank/årsoppgave","Notehenvisning for eventuelle åpne poster"]
[null,null,null,{"$f":"Forside!$B$18","v":2024},{"$f":"Forside!$B$18","v":2024}]
[null,null,null,null,null,{"$f":"D15-E15","v":0}]
[null,null,null,null,null,{"$f":"D16-E16","v":0}]
[null,null,null,null,null,0]
[null,null,null,null,null,0]
[null,null,null,null,null,0]
[null,null,null,null,null,{"$f":"D20-E20","v":0}]
[null,null,null,null,null,0]
[null,null,null,null,null,{"$f":"D22-E22","v":0}]
[null,null,null,null,null,0]
[null,null,null,null,null,0]
[null,null,null,null,null,0]
[null,"Sum",null,{"$f":"SUM(D15:D25)","v":0},{"$f":"SUM(E15:E25)","v":0},0]
[]
[null,"Forklare åpne poster i bankavstemmingsskjema?"]
[]
[]
[null,{"$f":"\"Note \"&G15","v":"Note "}]
[null,"Avvik mellom saldo HB og kontoutskrift bank/årsoppgave skyldes:"]
[]
[]
[]
[null,{"$f":"\"Note \"&G16","v":"Note "}]
[null,"Avvik mellom saldo HB og kontoutskrift bank/årsoppgave skyldes:"]
[]
[]
[]
[null,{"$f":"\"Note \"&G17","v":"Note "}]
[null,"Avvik mellom saldo HB og kontoutskrift bank/årsoppgave skyldes:"]
[]
[]
[]
[null,{"$f":"\"Note \"&G18","v":"Note "}]
[null,"Avvik mellom saldo HB og kontoutskrift bank/årsoppgave skyldes:"]
[]
[]
[]
[null,{"$f":"\"Note \"&G19","v":"Note "}]
[null,"Avvik mellom saldo HB og kontoutskrift bank/årsoppgave skyldes:"]
[]
[]
[]
[null,{"$f":"\"Note \"&G20","v":"Note "}]
[null,"Avvik mellom saldo HB og kontoutskrift bank/årsoppgave skyldes:"]
[]
[]
[]
[null,{"$f":"\"Note \"&G21","v":"Note "}]
[null,"Avvik mellom saldo HB og kontoutskrift bank/årsoppgave skyldes:"]
[]
[]
[]
[null,{"$f":"\"Note \"&G22","v":"Note "}]
[null,"Avvik mellom saldo HB og kontoutskrift bank/årsoppgave skyldes:"]
[]
[]
[]
[null,{"$f":"\"Note \"&G23","v":"Note "}]
[null,"Avvik mellom saldo HB og kontoutskrift bank/årsoppgave skyldes:"]
[]
[]
[]
[null,{"$f":"\"Note \"&G24","v":"Note "}]
[null,"Avvik mellom saldo HB og kontoutskrift bank/årsoppgave skyldes:"]
[]
[]
[]
[null,{"$f":"\"Note \"&G25","v":"Note "}]
[null,"Avvik mellom saldo HB og kontoutskrift bank/årsoppgave skyldes:"]
[]
[]
[]
[]
[null,"2) Avstemming bankkonti pr 31.01."]
[null,"Kontonummer\nHB ","Kontonavn","Saldo på konto i  hovedbok 31.01","Saldo iht kontoutskrift bank 31.01","Avvik mellom saldo på konto i HB og saldo kontoutskrift bank","Notehenvisning for eventuelle åpne poster"]
[null,null,null,{"$f":"Forside!$B$18+1","v":2025},{"$f":"Forside!$B$18+1","v":2025}]
[null,{"$f":"IFERROR(IF(ABS(B15)>0,(B15),\"\"),B15)","v":""},{"$f":"IFERROR(IF(ABS(C15)>0,(C15),\"\"),C15)","v":""},null,null,{"$f":"D90-E90","v":0}]
[null,{"$f":"IFERROR(IF(ABS(B16)>0,(B16),\"\"),B16)","v":""},{"$f":"IFERROR(IF(ABS(C16)>0,(C16),\"\"),C16)","v":""},null,null,{"$f":"D91-E91","v":0}]
[null,"","",null,null,0]
[null,"","",null,null,0]
[null,"","",null,null,0]
[null,"","",null,null,0]
[null,"","",null,null,0]
[null,"","",null,null,0]
[null,"","",null,null,0]
[null,"","",null,null,0]
[null,"","",null,null,0]
[null,"Sum",null,{"$f":"SUM(D90:D100)","v":0},{"$f":"SUM(E90:E100)","v":0},0]
[]
[null,"Forklare åpne poster i bankavstemmingsskjema?"]
[]
[null,{"$f":"\"Note \"&G90","v":"Note "}]
[null,"Avvik mellom saldo HB og kontoutskrift bank skyldes:"]
[]
[]
[]
[null,{"$f":"\"Note \"&G91","v":"Note "}]
[null,"Avvik mellom saldo HB og kontoutskrift bank skyldes:"]
[]
[]
[]
[null,{"$f":"\"Note \"&G92","v":"Note "}]
[null,"Avvik mellom saldo HB og kontoutskrift bank skyldes:"]
[]
[]
[]
[null,{"$f":"\"Note \"&G93","v":"Note "}]
[null,"Avvik mellom saldo HB og kontoutskrift bank skyldes:"]
[]
[]
[]
[null,{"$f":"\"Note \"&G94","v":"Note "}]
[null,"Avvik mellom saldo HB og kontoutskrift bank skyldes:"]
[]
[]
[]
[null,{"$f":"\"Note \"&G95","v":"Note "}]
[null,"Avvik mellom saldo HB og kontoutskrift bank skyldes:"]
[]
[]
[]
[null,{"$f":"\"Note \"&G96","v":"Note "}]
[null,"Avvik mellom saldo HB og kontoutskrift bank skyldes:"]
[]
[]
[]
[null,{"$f":"\"Note \"&G97","v":"Note "}]
[null,"Avvik mellom saldo HB og kontoutskrift bank skyldes:"]
[]
[]
[]
[null,{"$f":"\"Note \"&G98","v":"Note "}]
[null,"Avvik mellom saldo HB og kontoutskrift bank skyldes:"]
[]
[]
[]
[null,{"$f":"\"Note \"&G99","v":"Note "}]
[null,"Avvik mellom saldo HB og kontoutskrift bank skyldes:"]
[]
[]
[]
[null,{"$f":"\"Note \"&G100","v":"Note "}]
[null,"Avvik mellom saldo HB og kontoutskrift bank skyldes:"]
[]
[]
[]
[]
[]
[]
[null,"3) Avstemming renter bankkonti"]
[null,"Bankkontonummer",null,"Totale rentekostnader iht kontoutskrifter bank/årsoppgave","Totale renteinntekter iht kontoutskrifter bank/årsoppgave"]
[]
[]
[]
[]
[]
[]
[]
[]
[]
[]
[]
[]
[null,{"$f":"B101","v":"Sum"},null,{"$f":"SUM(D166:D176)","v":0},{"$f":"SUM(E166:E176)","v":0}]
[]
[null,"Bokførte rentekostnader i hovedbok knyttet til bank:"]
[null,"Konto XX"]
[null,"Konto XX"]
[null,"Sum bokførte rentekostnader",null,{"$f":"D180+D181","v":0}]
[null,"Avvik",null,{"$f":"D177-D182","v":0}]
[null,"Notehenvisning for eventuelle åpne poster"]
[]
[null,"Bokførte renteinntekter i hovedbok knyttet til bank:"]
[null,"Konto XX"]
[null,"Konto XX"]
[null,"Sum bokførte renteinntekter",null,null,{"$f":"+E187+E188","v":0}]
[null,"Avvik",null,null,{"$f":"+E177-E189","v":0}]
[null,"Notehenvisning for eventuelle åpne poster"]
[]
[]
[null,{"$f":"\"Note \"&D184","v":"Note "}]
[null,"Avvik mellom rentekostnader HB og kontoutskrift bank/årsoppgave skyldes:"]
[]
[]
[]
[null,{"$f":"\"Note \"&E191","v":"Note "}]
[null,"Avvik mellom renteinntekter HB og kontoutskrift bank/årsoppgave skyldes:"]

{"sheet":"Bank utenlandsk valuta","index":2,"n_rows":203,"n_cols":12,"rows_kept":203,"cut":false,"hidden":true,"merged":[[169,1,169,2],[168,1,168,2],[167,1,167,2],[167,6,168,6],[180,1,180,2],[172,1,172,2],[171,1,171,2],[170,1,170,2],[167,3,168,3],[196,1,196,3],[197,1,199,3],[201,1,201,3],[202,1,204,3],[88,11,90,11],[166,1,166,8],[189,6,189,8],[182,5,182,7],[162,1,163,8],[179,1,179,2],[178,1,178,2],[177,1,177,2],[176,1,176,2],[175,1,175,2],[174,1,174,2],[173,1,173,2],[122,1,124,11],[126,1,126,11],[127,1,129,11],[131,1,131,11],[132,1,134,11],[69,1,71,11],[73,1,73,11],[74,1,76,11],[78,1,78,11],[79,1,81,11],[58,1,58,11],[59,1,61,11],[63,1,63,11],[64,1,66,11],[68,1,68,11],[44,1,46,11],[48,1,48,11],[49,1,51,11],[53,1,53,11],[54,1,56,11],[33,1,33,11],[34,1,36,11],[38,1,38,11],[39,1,41,11],[43,1,43,11],[87,1,87,11],[156,1,156,11],[157,1,159,11],[88,7,90,7],[88,10,90,10],[106,1,106,11],[107,1,109,11],[111,1,111,11],[112,1,114,11],[116,1,116,11],[117,1,119,11],[121,1,121,11],[136,1,136,11],[137,1,139,11],[141,1,141,11],[142,1,144,11],[167,7,168,7],[167,4,168,4],[167,8,168,8],[146,1,146,11],[147,1,149,11],[151,1,151,11],[152,1,154,11],[0,1,1,11],[3,1,7,11],[28,1,28,11],[29,1,31,11],[10,11,12,11],[10,7,12,7],[10,10,12,10],[9,1,9,11],[10,8,12,8]]}
[null,"BANK - UTENLANDSK VALUTA"]
[]
[]
[null,"Veiledning: \n1. Første tabell er avstemming av bankkonti med saldi i utenlandsk valuta. Fyll inn tabell, og forklar eventuelle avvik mellom hovedbok og årsoppgave. Det er to alternativer for å forklare avvik avhengig av omfanget åpne poster; enten å legge inn notehenvisning i kolonne G og forklare i tilhørende note nedenfor tabell, eller fyll ut bankavstemmingsmal som kommer i neste arkfane ved at du huker av celle D27 \"et større antall åpne poster\". Dersom du ønsker flere bankavstemminger kan du kopiere avstemmingstabellen.\n2. Fyll inn tilsvarende avstemmingstabell pr 31.01 påfølgende år. \n3. Fyll inn tredje tabell for avstemming av bankrenter"]
[]
[]
[]
[]
[]
[null,"1) Avstemming bankkonti i utenlandsk valuta pr 31.12."]
[null,"Kontonummer \nHB","Kontonavn","Saldo på konto i HB 31.12.","Saldo på konto i HB 31.12.","Valuta","Saldo iht kontoutskrift bank/årsoppgave 31.12.","Avvik mellom saldo på konto i HB og saldo iht kontoutskrift bank/årsoppgave i pålydende valuta","Valutakurs på balansedagen iht Norges Bank","Beløp i NOK","Avvik mellom saldo på konto i HB og saldo iht kontoutskrift bank/årsoppgave i NOK","Notehenvisning for eventuelle åpne poster"]
[null,null,null,{"$f":"Forside!$B$18","v":2024},{"$f":"Forside!$B$18","v":2024},null,{"$f":"Forside!$B$18","v":2024}]
[null,null,null,"NOK","i pålydende valuta ",null,"i pålydende valuta "]
[null,null,null,null,null,null,null,{"$f":"E14-G14","v":0},null,{"$f":"G14*I14","v":0},{"$f":"D14-J14","v":0}]
[null,null,null,null,null,null,null,0,null,{"$f":"G15*I15","v":0},{"$f":"D15-J15","v":0}]
[null,null,null,null,null,null,null,0,null,0,0]
[null,null,null,null,null,null,null,0,null,0,0]
[null,null,null,null,null,null,null,0,null,0,0]
[null,null,null,null,null,null,null,0,null,0,0]
[null,null,null,null,null,null,null,0,null,0,0]
[null,null,null,null,null,null,null,0,null,0,0]
[null,null,null,null,null,null,null,0,null,0,0]
[null,null,null,null,null,null,null,0,null,0,0]
[null,null,null,null,null,null,null,0,null,0,0]
[null,"Sum",null,{"$f":"SUM(D14:D24)","v":0},{"$f":"SUM(E14:E24)","v":0},null,{"$f":"SUM(G14:G24)","v":0},0,null,{"$f":"SUM(J14:J24)","v":0},{"$f":"SUM(K14:K24)","v":0}]
[]
[null,"Forklare åpne poster i bankavstemmingsskjema?"]
[]
[null,{"$f":"\"Note \"&L14","v":"Note "}]
[null,"Avvik mellom saldo HB og kontoutskrift bank/årsoppgave skyldes:"]
[]
[]
[]
[null,{"$f":"\"Note \"&L15","v":"Note "}]
[null,"Avvik mellom saldo HB og kontoutskrift bank/årsoppgave skyldes:"]
[]
[]
[]
[null,{"$f":"\"Note \"&L16","v":"Note "}]
[null,"Avvik mellom saldo HB og kontoutskrift bank/årsoppgave skyldes:"]
[]
[]
[]
[null,{"$f":"\"Note \"&L17","v":"Note "}]
[null,"Avvik mellom saldo HB og kontoutskrift bank/årsoppgave skyldes:"]
[]
[]
[]
[null,{"$f":"\"Note \"&L18","v":"Note "}]
[null,"Avvik mellom saldo HB og kontoutskrift bank/årsoppgave skyldes:"]
[]
[]
[]
[null,{"$f":"\"Note \"&L19","v":"Note "}]
[null,"Avvik mellom saldo HB og kontoutskrift bank/årsoppgave skyldes:"]
[]
[]
[]
[null,{"$f":"\"Note \"&L20","v":"Note "}]
[null,"Avvik mellom saldo HB og kontoutskrift bank/årsoppgave skyldes:"]
[]
[]
[]
[null,{"$f":"\"Note \"&L21","v":"Note "}]
[null,"Avvik mellom saldo HB og kontoutskrift bank/årsoppgave skyldes:"]
[]
[]
[]
[null,{"$f":"\"Note \"&L22","v":"Note "}]
[null,"Avvik mellom saldo HB og kontoutskrift bank/årsoppgave skyldes:"]
[]
[]
[]
[null,{"$f":"\"Note \"&L23","v":"Note "}]
[null,"Avvik mellom saldo HB og kontoutskrift bank/årsoppgave skyldes:"]
[]
[]
[]
[null,{"$f":"\"Note \"&L24","v":"Note "}]
[null,"Avvik mellom saldo HB og kontoutskrift bank/årsoppgave skyldes:"]
[]
[]
[]
[]
[]
[]
[]
[null,"2) Avstemming bankkonti i utenlandsk valuta pr 31.01."]
[null,"Kontonummer \nHB","Kontonavn","Saldo på konto i HB 31.01.","Saldo på konto i HB 31.01.","Valuta","Saldo iht kontoutskrift bank/årsoppgave 31.01.","Avvik mellom saldo på konto i HB og saldo iht kontoutskrift bank/årsoppgave pålydende valuta","Valutakurs iht Norges Bank 31.01.","Beløp i NOK","Avvik mellom saldo på konto i HB og saldo iht bankavstemming i NOK","Notehenvisning for eventuelle åpne poster"]
[null,null,null,{"$f":"Forside!$B$18+1","v":2025},{"$f":"Forside!$B$18+1","v":2025},null,{"$f":"Forside!$B$18+1","v":2025},null,{"$f":"+Forside!B18+1","v":2025}]
[null,null,null,"NOK","i pålydende valuta ",null,"pålydende valuta "]
[null,{"$f":"IFERROR(IF(ABS(B14)>0,(B14),\"\"),B14)","v":""},{"$f":"IFERROR(IF(ABS(C14)>0,(C14),\"\"),C14)","v":""},null,null,null,null,{"$f":"E92-G92","v":0},null,{"$f":"G92*I92","v":0},{"$f":"D92-J92","v":0}]
[null,{"$f":"IFERROR(IF(ABS(B15)>0,(B15),\"\"),B15)","v":""},"",null,null,null,null,{"$f":"E93-G93","v":0},null,{"$f":"G93*I93","v":0},{"$f":"D93-J93","v":0}]
[null,{"$f":"IFERROR(IF(ABS(B16)>0,(B16),\"\"),B16)","v":""},"",null,null,null,null,0,null,0,0]
[null,{"$f":"IFERROR(IF(ABS(B17)>0,(B17),\"\"),B17)","v":""},"",null,null,null,null,0,null,0,0]
[null,{"$f":"IFERROR(IF(ABS(B18)>0,(B18),\"\"),B18)","v":""},"",null,null,null,null,0,null,0,0]
[null,{"$f":"IFERROR(IF(ABS(B19)>0,(B19),\"\"),B19)","v":""},"",null,null,null,null,0,null,0,0]
[null,{"$f":"IFERROR(IF(ABS(B20)>0,(B20),\"\"),B20)","v":""},"",null,null,null,null,0,null,0,0]
[null,{"$f":"IFERROR(IF(ABS(B21)>0,(B21),\"\"),B21)","v":""},"",null,null,null,null,0,null,0,0]
[null,{"$f":"IFERROR(IF(ABS(B22)>0,(B22),\"\"),B22)","v":""},"",null,null,null,null,0,null,0,0]
[null,{"$f":"IFERROR(IF(ABS(B23)>0,(B23),\"\"),B23)","v":""},"",null,null,null,null,0,null,0,0]
[null,{"$f":"IFERROR(IF(ABS(B24)>0,(B24),\"\"),B24)","v":""},"",null,null,null,null,0,null,0,0]
[null,null,null,{"$f":"SUM(D92:D102)","v":0},null,null,{"$f":"SUM(G92:G102)","v":0},0,null,{"$f":"SUM(J92:J102)","v":0},{"$f":"SUM(K92:K102)","v":0}]
[]
[null,"Forklare åpne poster i bankavstemmingsskjema?"]
[]
[null,{"$f":"\"Note \"&L92","v":"Note "}]
[null,"Avvik mellom saldo HB og kontoutskrift bank/årsoppgave skyldes:"]
[]
[]
[]
[null,{"$f":"\"Note \"&L93","v":"Note "}]
[null,"Avvik mellom saldo HB og kontoutskrift bank/årsoppgave skyldes:"]
[]
[]
[]
[null,{"$f":"\"Note \"&L94","v":"Note "}]
[null,"Avvik mellom saldo HB og kontoutskrift bank/årsoppgave skyldes:"]
[]
[]
[]
[null,{"$f":"\"Note \"&L95","v":"Note "}]
[null,"Avvik mellom saldo HB og kontoutskrift bank/årsoppgave skyldes:"]
[]
[]
[]
[null,{"$f":"\"Note \"&L96","v":"Note "}]
[null,"Avvik mellom saldo HB og kontoutskrift bank/årsoppgave skyldes:"]
[]
[]
[]
[null,{"$f":"\"Note \"&L97","v":"Note "}]
[null,"Avvik mellom saldo HB og kontoutskrift bank/årsoppgave skyldes:"]
[]
[]
[]
[null,{"$f":"\"Note \"&L98","v":"Note "}]
[null,"Avvik mellom saldo HB og kontoutskrift bank/årsoppgave skyldes:"]
[]
[]
[]
[null,{"$f":"\"Note \"&L99","v":"Note "}]
[null,"Avvik mellom saldo HB og kontoutskrift bank/årsoppgave skyldes:"]
[]
[]
[]
[null,{"$f":"\"Note \"&L100","v":"Note "}]
[null,"Avvik mellom saldo HB og kontoutskrift bank/årsoppgave skyldes:"]
[]
[]
[]
[null,{"$f":"\"Note \"&L101","v":"Note "}]
[null,"Avvik mellom saldo HB og kontoutskrift bank/årsoppgave skyldes:"]
[]
[]
[]
[null,{"$f":"\"Note \"&L102","v":"Note "}]
[null,"Avvik mellom saldo HB og kontoutskrift bank/årsoppgave skyldes:"]
[]
[]
[]
[]
[null,"Veiledning: Valutakurs i tabellen nedenfor er snittkurs Norges Bank gjennom året. Dette vil følgelig føre til noen avvik ved avstemming mellom kontoutskrifter bank/årsoppgave og hva som er bokført i HB. Det er kun avvik utover valutasvningninger som må forklares i note"]
[]
[]
[]
[null,"3) Avstemming renter bankkonti i utenlands valuta"]
[null,"Bankkontonummer",null,"Totale rentekostnader iht bank, pålydende valuta","Totale renteinntekter iht bank, pålydende valuta","Valuta","Valutakurs iht Norges Bank (snittkurs)","Totale rentekostnader iht bank, NOK","Totale rentekinntekter iht bank, NOK"]
[]
[null,null,null,null,null,null,null,{"$f":"D170*$G170","v":0},{"$f":"E170*$G170","v":0}]
[null,null,null,null,null,null,null,{"$f":"D171*$G171","v":0},0]
[null,null,null,null,null,null,null,0,0]
[null,null,null,null,null,null,null,0,0]
[null,null,null,null,null,null,null,0,0]
[null,null,null,null,null,null,null,0,0]
[null,null,null,null,null,null,null,0,0]
[null,null,null,null,null,null,null,0,0]
[null,null,null,null,null,null,null,0,0]
[null,null,null,null,null,null,null,0,0]
[null,null,null,null,null,null,null,0,0]
[null,"Sum",null,{"$f":"SUM(D170:D180)","v":0},{"$f":"SUM(E170:E180)","v":0},null,null,{"$f":"SUM(H170:H180)","v":0},{"$f":"SUM(I170:I180)","v":0}]
[]
[null,null,null,null,null,"Bokførte rentekostnader i HB knyttet til bank:"]
[null,null,null,null,null,"Konto XX"]
[null,null,null,null,null,"Konto XX"]
[null,null,null,null,null,"Sum bokførte rentekostnader",null,{"$f":"H184+H185","v":0}]
[null,null,null,null,null,"Avvik",null,{"$f":"H181-H186","v":0}]
[null,null,null,null,null,"Notehenvisning for eventuelle åpne poster"]
[]
[null,null,null,null,null,null,"Bokførte renteinntekter i HB knyttet til bank:"]
[null,null,null,null,null,null,"Konto XX"]
[null,null,null,null,null,null,"Konto XX"]
[null,null,null,null,null,null,"Sum bokførte renteinntekter",null,{"$f":"+I191+I192","v":0}]
[null,null,null,null,null,null,"Avvik",null,{"$f":"+I181-I193","v":0}]
[null,null,null,null,null,null,"Notehenvisning for eventuelle åpne poster"]
[]
[null,{"$f":"\"Note \"&H188","v":"Note "}]
[null,"Avvik mellom rentekostnader HB og kontoutskrift bank/årsoppgave skyldes:"]
[]
[]
[]
[null,{"$f":"\"Note \"&I195","v":"Note "}]
[null,"Avvik mellom renteinntekter HB og kontoutskrift bank/årsoppgave skyldes:"]

{"sheet":"Bankavstemming 31.12.","index":3,"n_rows":39,"n_cols":9,"rows_kept":39,"cut":false,"hidden":true,"merged":[[32,3,32,6],[0,1,1,8],[5,1,5,7],[6,3,6,6],[27,3,27,6],[20,3,20,6],[13,3,13,6],[4,1,4,7],[25,3,25,6],[28,3,28,6],[29,3,29,6],[30,3,30,6],[31,3,31,6],[37,1,37,8],[38,1,40,8],[7,3,7,6],[8,3,8,6],[9,3,9,6],[10,3,10,6],[11,3,11,6],[14,3,14,6],[15,3,15,6],[16,3,16,6],[17,3,17,6],[18,3,18,6],[21,3,21,6],[22,3,22,6],[23,3,23,6],[24,3,24,6]]}
[null,"BANKAVSTEMMING"]
[]
[]
[null,null,null,null,null,null,null,null,"Beløp"]
[null,"Saldo ifølge hovedbok"]
[null,"Uttak regnskapsført - ikke medtatt bankkontoutskrift:"]
[null,"Dato","Bilag","(tekst)",null,null,null,"Beløp"]
[]
[]
[null,null,null," "]
[null,null,null," "]
[null,null,null,null,null,null,null,null,{"$f":"SUM(H8:H12)","v":0}]
[null,"Innskudd regnskapsført - ikke medtatt bankkontoutskrift:"]
[null,"Dato","Bilag","(tekst)",null,null,null,"Beløp"]
[]
[null,null,null," "]
[]
[]
[null,null,null,null,null,null,null,null,{"$f":"-SUM(H15:H19)","v":0}]
[null,"Uttak ikke regnskapsført - medtatt bankkontoutskrift:"]
[null,"Dato","Side","(ref.nr/tekst)",null,null,null,"Beløp"]
[]
[]
[]
[]
[null,null,null,null,null,null,null,null,{"$f":"-SUM(H22:H26)","v":0}]
[null,"Innskudd ikke regnskapsført - medtatt bankkontoutskrift:"]
[null,"Dato","Side","(ref.nr/tekst)",null,null,null,"Beløp"]
[]
[]
[]
[]
[null,null,null,null,null,null,null,null,{"$f":"SUM(H29:H33)","v":0}]
[null,null,null,null," ","  Korrigert regnskapsført saldo",null,null,{"$f":"SUM(I5:I33)","v":0}]
[null," ",null,null,null,"  Saldo iflg bankens utskrift"]
[null,null,null,null,null,"  Differanse",null,null,{"$f":"I34-I35","v":0}]
[]
[null,"Note"]
[null,"Avvik skyldes:"]

{"sheet":"Bankavstemming 31.12. utenl. va","index":4,"n_rows":39,"n_cols":9,"rows_kept":39,"cut":false,"hidden":true,"merged":[[15,3,15,6],[0,1,1,8],[4,1,4,7],[5,1,5,7],[6,3,6,6],[7,3,7,6],[8,3,8,6],[9,3,9,6],[10,3,10,6],[11,3,11,6],[13,3,13,6],[14,3,14,6],[29,3,29,6],[16,3,16,6],[17,3,17,6],[18,3,18,6],[20,3,20,6],[21,3,21,6],[22,3,22,6],[23,3,23,6],[24,3,24,6],[25,3,25,6],[27,3,27,6],[28,3,28,6],[30,3,30,6],[31,3,31,6],[32,3,32,6],[37,1,37,8],[38,1,40,8]]}
[null,"BANKAVSTEMMING"]
[]
[]
[null,null,null,null,null,null,null,null,"Beløp"]
[null,"Saldo ifølge hovedbok"]
[null,"Uttak regnskapsført - ikke medtatt bankkontoutskrift:"]
[null,"Dato","Bilag","(tekst)",null,null,null,"Beløp"]
[]
[]
[null,null,null," "]
[null,null,null," "]
[null,null,null,null,null,null,null,null,{"$f":"SUM(H8:H12)","v":0}]
[null,"Innskudd regnskapsført - ikke medtatt bankkontoutskrift:"]
[null,"Dato","Bilag","(tekst)",null,null,null,"Beløp"]
[]
[null,null,null," "]
[]
[]
[null,null,null,null,null,null,null,null,{"$f":"-SUM(H15:H19)","v":0}]
[null,"Uttak ikke regnskapsført - medtatt bankkontoutskrift:"]
[null,"Dato","Side","(ref.nr/tekst)",null,null,null,"Beløp"]
[]
[]
[]
[]
[null,null,null,null,null,null,null,null,{"$f":"-SUM(H22:H26)","v":0}]
[null,"Innskudd ikke regnskapsført - medtatt bankkontoutskrift:"]
[null,"Dato","Side","(ref.nr/tekst)",null,null,null,"Beløp"]
[]
[]
[]
[]
[null,null,null,null,null,null,null,null,{"$f":"SUM(H29:H33)","v":0}]
[null,null,null,null," ","  Korrigert regnskapsført saldo",null,null,{"$f":"SUM(I5:I33)","v":0}]
[null," ",null,null,null,"  Saldo iflg bankens utskrift"]
[null,null,null,null,null,"  Differanse",null,null,{"$f":"I34-I35","v":0}]
[]
[null,"Note"]
[null,"Avvik skyldes:"]

{"sheet":"Bankavstemming 31.01.","index":5,"n_rows":39,"n_cols":9,"rows_kept":39,"cut":false,"hidden":true,"merged":[[8,3,8,6],[0,1,1,8],[4,1,4,7],[5,1,5,7],[6,3,6,6],[7,3,7,6],[9,3,9,6],[10,3,10,6],[11,3,11,6],[15,3,15,6],[16,3,16,6],[13,3,13,6],[14,3,14,6],[38,1,40,8],[31,3,31,6],[32,3,32,6],[25,3,25,6],[27,3,27,6],[28,3,28,6],[29,3,29,6],[30,3,30,6],[21,3,21,6],[22,3,22,6],[37,1,37,8],[17,3,17,6],[18,3,18,6],[20,3,20,6],[23,3,23,6],[24,3,24,6]]}
[null,"BANKAVSTEMMING"]
[]
[]
[null,null,null,null,null,null,null,null,"Beløp"]
[null,"Saldo ifølge hovedbok"]
[null,"Uttak regnskapsført - ikke medtatt bankkontoutskrift:"]
[null,"Dato","Bilag","(tekst)",null,null,null,"Beløp"]
[]
[]
[null,null,null," "]
[null,null,null," "]
[null,null,null,null,null,null,null,null,{"$f":"SUM(H8:H12)","v":0}]
[null,"Innskudd regnskapsført - ikke medtatt bankkontoutskrift:"]
[null,"Dato","Bilag","(tekst)",null,null,null,"Beløp"]
[]
[null,null,null," "]
[]
[]
[null,null,null,null,null,null,null,null,{"$f":"-SUM(H15:H19)","v":0}]
[null,"Uttak ikke regnskapsført - medtatt bankkontoutskrift:"]
[null,"Dato","Side","(ref.nr/tekst)",null,null,null,"Beløp"]
[]
[]
[]
[]
[null,null,null,null,null,null,null,null,{"$f":"-SUM(H22:H26)","v":0}]
[null,"Innskudd ikke regnskapsført - medtatt bankkontoutskrift:"]
[null,"Dato","Side","(ref.nr/tekst)",null,null,null,"Beløp"]
[]
[]
[]
[]
[null,null,null,null,null,null,null,null,{"$f":"SUM(H29:H33)","v":0}]
[null,null,null,null," ","  Korrigert regnskapsført saldo",null,null,{"$f":"SUM(I5:I33)","v":0}]
[null," ",null,null,null,"  Saldo iflg bankens utskrift"]
[null,null,null,null,null,"  Differanse",null,null,{"$f":"I34-I35","v":0}]
[]
[null,"Note"]
[null,"Avvik skyldes:"]

{"sheet":"Bankavstemming 31.01. utenl. va","index":6,"n_rows":39,"n_cols":9,"rows_kept":39,"cut":false,"hidden":true,"merged":[[15,3,15,6],[0,1,1,8],[4,1,4,7],[5,1,5,7],[6,3,6,6],[7,3,7,6],[8,3,8,6],[9,3,9,6],[10,3,10,6],[11,3,11,6],[13,3,13,6],[14,3,14,6],[29,3,29,6],[16,3,16,6],[17,3,17,6],[18,3,18,6],[20,3,20,6],[21,3,21,6],[22,3,22,6],[23,3,23,6],[24,3,24,6],[25,3,25,6],[27,3,27,6],[28,3,28,6],[30,3,30,6],[31,3,31,6],[32,3,32,6],[37,1,37,8],[38,1,40,8]]}
[null,"BANKAVSTEMMING"]
[]
[]
[null,null,null,null,null,null,null,null,"Beløp"]
[null,"Saldo ifølge hovedbok"]
[null,"Uttak regnskapsført - ikke medtatt bankkontoutskrift:"]
[null,"Dato","Bilag","(tekst)",null,null,null,"Beløp"]
[]
[]
[null,null,null," "]
[null,null,null," "]
[null,null,null,null,null,null,null,null,{"$f":"SUM(H8:H12)","v":0}]
[null,"Innskudd regnskapsført - ikke medtatt bankkontoutskrift:"]
[null,"Dato","Bilag","(tekst)",null,null,null,"Beløp"]
[]
[null,null,null," "]
[]
[]
[null,null,null,null,null,null,null,null,{"$f":"-SUM(H15:H19)","v":0}]
[null,"Uttak ikke regnskapsført - medtatt bankkontoutskrift:"]
[null,"Dato","Side","(ref.nr/tekst)",null,null,null,"Beløp"]
[]
[]
[]
[]
[null,null,null,null,null,null,null,null,{"$f":"-SUM(H22:H26)","v":0}]
[null,"Innskudd ikke regnskapsført - medtatt bankkontoutskrift:"]
[null,"Dato","Side","(ref.nr/tekst)",null,null,null,"Beløp"]
[]
[]
[]
[]
[null,null,null,null,null,null,null,null,{"$f":"SUM(H29:H33)","v":0}]
[null,null,null,null," ","  Korrigert regnskapsført saldo",null,null,{"$f":"SUM(I5:I33)","v":0}]
[null," ",null,null,null,"  Saldo iflg bankens utskrift"]
[null,null,null,null,null,"  Differanse",null,null,{"$f":"I34-I35","v":0}]
[]
[null,"Note"]
[null,"Avvik skyldes:"]

{"sheet":"Kasse","index":7,"n_rows":40,"n_cols":6,"rows_kept":40,"cut":false,"hidden":true,"merged":[[38,1,38,5],[39,1,41,5],[30,2,30,4],[31,2,31,4],[32,2,32,4],[6,1,6,5],[0,1,1,5],[3,1,4,5],[19,2,19,4],[20,2,20,4],[27,2,27,4],[29,2,29,4],[21,2,21,4],[22,2,22,4],[24,2,24,4],[25,2,25,4],[26,2,26,4]]}
[null,"KASSE"]
[]
[]
[null,"Veiledning: \nFyll inn tabell for avstemming av kassa. Forklar eventuelle avvik i note."]
[]
[]
[null,"KASSETELLING"]
[null,1,"Kontanter i kassen"]
[null,null,null,"Antall"]
[null,null,"1 kr",null,{"$f":"D10","v":0}]
[null,null,"5 kr",null,{"$f":"D11*5","v":0},"                       "]
[null,null,"10 kr",null,{"$f":"D12*10","v":0},"                       "]
[null,null,"20 kr",null,{"$f":"D13*20","v":0}]
[null,null,"50 kr",null,{"$f":"D14*50","v":0}]
[null,null,"100 kr",null,{"$f":"D15*100","v":0},"                       "]
[null,null,"200 kr",null,{"$f":"D16*200","v":0}]
[null,null,"500 kr",null,{"$f":"D17*500","v":0},"                       "]
[null,null,"1.000 kr",null,{"$f":"D18*1000","v":0},{"$f":"SUM(E10:E18)","v":0}]
[null," 2","Sjekker/postanvisninger m.v.:"]
[]
[]
[]
[null,null,"Sum",null,null,{"$f":"SUM(F20:F22)","v":0}]
[null," 3","Ikke bokførte utbetalinger:"]
[]
[]
[null,null,null,null,null,"                       "]
[null,null,"Sum",null,null,{"$f":"SUM(F25:F27)","v":0}]
[null," 4","Ikke bokførte innbetalinger:"]
[]
[]
[]
[null,null,"Sum",null,null,{"$f":"SUM(F29:F32)","v":0}]
[null," Sum opptalt",null,null,null,{"$f":"F18+F23+F28-F33","v":0}]
[null," Ifølge kassedagbok/hovedbok"]
[null," Differanse",null,null,null,{"$f":"F34-F35","v":0}]
[]
[]
[null,"Note"]
[null,"Avvik skyldes:"]

{"sheet":"Kundefordringer","index":8,"n_rows":71,"n_cols":11,"rows_kept":71,"cut":false,"hidden":true,"merged":[[63,1,65,7],[69,1,69,4],[31,1,31,10],[47,1,47,2],[46,1,46,2],[45,1,45,2],[44,1,44,2],[43,1,43,2],[51,1,51,7],[0,1,1,7],[3,1,8,7],[42,6,42,7],[48,6,48,7],[47,6,47,7],[46,6,46,7],[45,6,45,7],[44,6,44,7],[43,6,43,7],[10,1,10,7],[21,1,21,7],[41,1,41,7],[48,1,48,2]]}
[null,"KUNDEFORDRINGER"]
[]
[]
[null,"Veiledning: \n1. Fyll inn tabell 1 med saldo kundereskontro iht hovedbok og iht kundereskontro. Forklar eventuelle avvik. Kopien av kundereskontroen legges som vedlegg til denne årsoppgjørspakken, gi henvisning i tabellen nedenfor.  Utføres både pr 31.12. og 31.01 påfølgende år.\n2. Fyll inn tabell knyttet til unormale poster i tilfeller hvor det foreligger større poster eldre enn 60 dager i reskontro, eventuelt dersom det foreligger større kreditposter i reskontro.\n3. Fyll inn deres beregning/vurdering for avsetning til tap med avstemming mot hovedbok. \n4. Fyll inn spesifikasjon av tapsførte kundefordringer inneværende år dersom aktuelt."]
[]
[]
[]
[]
[]
[]
[null,"1) Avstemming kundereskontro pr 31.12."]
[null,"Kontonummer","Kontonavn","Saldo HB pr 31.12.","Saldo iht kundereskontro","Avvik mellom HB og kundereskontro","Forklaring til eventuelle avvik","Henvisning til vedlagt reskontro (nr)"]
[null,null,null,null,null,{"$f":"D13-E13","v":0}]
[null,null,null,null,null,{"$f":"D14-E14","v":0}]
[null,null,null,null,null,0]
[null,null,null,null,null,0]
[null,null,null,null,null,0]
[null,"Sum",null,{"$f":"SUM(D13:D17)","v":0},{"$f":"SUM(E13:E17)","v":0},0]
[]
[]
[]
[null,"1) Avstemming kundereskontro pr 31.01."]
[null,"Kontonummer","Kontonavn","Saldo HB pr 31.01.","Saldo iht kundereskontro","Avvik mellom HB og kundereskontro","Forklaring til eventuelle avvik","Henvisning til vedlagt reskontro (nr)"]
[null,null,null,null,null,{"$f":"D24-E24","v":0}]
[null,null,null,null,null,{"$f":"D25-E25","v":0}]
[null,null,null,null,null,0]
[null,null,null,null,null,0]
[null,null,null,null,null,0]
[null,"Sum",null,{"$f":"SUM(D24:D28)","v":0},{"$f":"SUM(E24:E28)","v":0},{"$f":"SUM(F24:F28)","v":0}]
[]
[]
[null,"1) Avstemming kundereskontro utenlandsk valuta pr 31.12."]
[null,"Kontonummer","Kontonavn","Saldo HB pr 31.12.\nNOK","Saldo iht kundereskontro\npålydende valuta","Valuta","Valutakurs iht Norges Bank pr balansetidspunkt","Saldo iht kundereskontro omregnet til NOK","Avvik mellom HB og kundereskontro","Forklaring til eventuelle avvik","Henvisning til vedlagt reskontro (nr)"]
[null,null,null,null,null,null,null,{"$f":"+E34*G34","v":0},{"$f":"D34-H34","v":0}]
[null,null,null,null,null,null,null,{"$f":"+E35*G35","v":0},{"$f":"D35-H35","v":0}]
[null,null,null,null,null,null,null,0,0]
[null,null,null,null,null,null,null,0,0]
[null,null,null,null,null,null,null,0,0]
[null,"Sum",null,{"$f":"SUM(D34:D38)","v":0},{"$f":"SUM(E34:E38)","v":0},0,0,0,{"$f":"SUM(I34:I38)","v":0}]
[]
[]
[null,"2) Gjennomgang større unormale poster"]
[null,"Kundenavn/kundenr",null,"Utestående beløp>60 dager","Utestående beløp>90 dager","Utestående kreditposter","Forklaring "]
[]
[]
[]
[]
[]
[]
[]
[]
[null,"3) Beregning/vurdering avsetning for tap"]
[]
[]
[null,"Beregning:"]
[null,"Kategori","xx","xx","xx","xx","xx","Sum"]
[null,"Beløp",null,null,null,null,null,{"$f":"SUM(C57:G57)","v":0}]
[null,"% avsetning"]
[null,"Avsetning pr kategori",{"$f":"C57*C58","v":0},{"$f":"D57*D58","v":0},0,0,0,{"$f":"SUM(C59:G59)","v":0}]
[null,"Bokført avsetning"]
[null,"Differanse",null,null,null,null,null,{"$f":"H59-H60","v":0}]
[]
[null,"Vurdering:"]
[]
[]
[]
[]
[]
[]
[null,"4) Større tapsførte kundefordringer"]
[null,"Kundenavn/kundenr","Bilag for tapsføring","Beløp tapsført","Begrunnelse"]

{"sheet":"Varelager","index":9,"n_rows":96,"n_cols":8,"rows_kept":96,"cut":false,"hidden":true,"merged":[[30,1,30,6],[31,1,33,6],[35,1,35,6],[36,1,38,6],[84,1,84,6],[58,1,60,6],[62,1,62,6],[63,1,65,6],[67,1,67,6],[68,1,70,6],[72,1,72,6],[73,1,75,6],[77,1,77,6],[78,1,80,6],[96,1,98,7],[0,1,1,6],[3,1,8,6],[10,1,10,6],[46,1,46,6],[47,1,48,1],[47,6,48,6],[47,5,48,5],[47,4,48,4],[20,1,20,6],[21,1,23,6],[25,1,25,6],[26,1,28,6],[40,1,40,6],[41,1,43,6],[57,1,57,6]]}
[null,"VARELAGER"]
[]
[]
[null,"Veiledning: \n1. Fyll inn tabell for avstemming av varelagerlister, én avstemming pr lagerlokasjon. Ved avvik mellom hovedbok og varelagerliste, legg inn notehenvisning i kolonne F, og forklar i tilhørende note (kommer opp automatisk) nedenfor tabell. Legg ved spesifikasjon av evnt transaksjoner til årsoppgjørspakken. Varelagerlistene legges ved årsoppgjørspakken som underliggende dokumentasjon, gi henvisning i tabellen nedenfor.\n2. Fyll inn tabell for avstemming ukuransavsetning iht beregning/vurdering mot hovedbok."]
[]
[]
[]
[]
[]
[]
[null,"1) Avstemming varelagerlister pr 31.12."]
[null,"Kontonummer og kontonavn/\nlagerlokasjon","Saldo HB pr 31.12.","Saldo iht varelagerliste","Avvik mellom HB og varelagerliste","Notehenvisning","Vedleggs-henvisning"]
[null,null,null,null,{"$f":"+C13-D13","v":0}]
[null,null,null,null,{"$f":"+C14-D14","v":0}]
[null,null,null,null,0]
[null,null,null,null,0]
[null,null,null,null,0]
[null,"Sum",null,null,{"$f":"SUM(E13:E17)","v":0}]
[]
[]
[null,{"$f":"\"Note \"&F13","v":"Note "}]
[null,"Avvik mellom saldo HB og varelagerliste skyldes:"]
[]
[]
[]
[null,{"$f":"\"Note \"&F14","v":"Note "}]
[null,"Avvik mellom saldo HB og varelagerliste skyldes:"]
[]
[]
[]
[null,{"$f":"\"Note \"&F15","v":"Note "}]
[null,"Avvik mellom saldo HB og varelagerliste skyldes:"]
[]
[]
[]
[null,{"$f":"\"Note \"&F16","v":"Note "}]
[null,"Avvik mellom saldo HB og varelagerliste skyldes:"]
[]
[]
[]
[null,{"$f":"\"Note \"&F17","v":"Note "}]
[null,"Avvik mellom saldo HB og varelagerliste skyldes:"]
[]
[]
[]
[]
[null,"1) Avstemming varelagerlister pr telletidspunkt"]
[null,"Kontonummer og kontonavn/\nlagerlokasjon","Saldo HB pr ","Saldo iht varelagerliste","Avvik mellom HB og varelagerliste","Notehenvisning","Vedleggs-henvisning"]
[null,null,{"$f":"+Forside!C30","v":"xx.xx.xxxx"},{"$f":"+Forside!C30","v":"xx.xx.xxxx"}]
[null,null,null,null,{"$f":"+C50-D50","v":0}]
[null,null,null,null,{"$f":"+C51-D51","v":0}]
[null,null,null,null,0]
[null,null,null,null,0]
[null,null,null,null,0]
[null,"Sum",null,null,{"$f":"SUM(E50:E54)","v":0}]
[]
[]
[null,{"$f":"\"Note \"&F50","v":"Note "}]
[null,"Avvik mellom saldo HB og varelagerliste skyldes:"]
[]
[]
[]
[null,{"$f":"\"Note \"&F51","v":"Note "}]
[null,"Avvik mellom saldo HB og varelagerliste skyldes:"]
[]
[]
[]
[null,{"$f":"\"Note \"&F52","v":"Note "}]
[null,"Avvik mellom saldo HB og varelagerliste skyldes:"]
[]
[]
[]
[null,{"$f":"\"Note \"&F53","v":"Note "}]
[null,"Avvik mellom saldo HB og varelagerliste skyldes:"]
[]
[]
[]
[null,{"$f":"\"Note \"&F54","v":"Note "}]
[null,"Avvik mellom saldo HB og varelagerliste skyldes:"]
[]
[]
[]
[]
[]
[null,"2) Beregning/vurdering ukuransavsetning"]
[]
[]
[null,"Beregning:"]
[null,"Kategori","xx","xx","xx","xx","xx","Sum"]
[null,"Beløp",null,null,null,null,null,{"$f":"SUM(C90:G90)","v":0}]
[null,"% avsetning"]
[null,"Avsetning pr kategori",{"$f":"C90*C91","v":0},{"$f":"D90*D91","v":0},0,0,0,{"$f":"SUM(C92:G92)","v":0}]
[null,"Bokført avsetning"]
[null,"Differanse",null,null,null,null,null,{"$f":"H92-H93","v":0}]
[]
[null,"Vurdering:"]

{"sheet":"Forskuddsbetalte kostnader","index":10,"n_rows":100,"n_cols":7,"rows_kept":100,"cut":false,"hidden":true,"merged":[[45,1,45,6],[46,1,47,1],[46,2,47,2],[46,3,47,3],[46,4,47,4],[46,5,47,5],[46,6,47,6],[26,1,26,6],[27,1,28,1],[27,2,28,2],[27,3,28,3],[27,4,28,4],[27,5,28,5],[27,6,28,6],[8,5,9,5],[0,1,1,6],[3,1,5,6],[7,1,7,6],[8,6,9,6],[8,1,9,1],[8,2,9,2],[8,3,9,3],[8,4,9,4],[64,1,64,6],[65,1,66,1],[65,2,66,2],[65,3,66,3],[65,4,66,4],[65,5,66,5],[65,6,66,6],[83,1,83,6],[84,1,85,1],[84,2,85,2],[84,3,85,3],[84,4,85,4],[84,5,85,5],[84,6,85,6]]}
[null,"Forskuddsbetalte kostnader"]
[]
[]
[null,"Veiledning: \n1. Fyll inn tabell for spesifikasjon av forskuddsbetalte kostnader. Fyll inn én tabell pr konto, oppgi kontonavn i overskrift og legg underliggende dokumentasjon med årsoppgjørspakken, nummerer den og gi henvisning i tabellen nedenfor. "]
[]
[]
[]
[null,"Spesifikasjon forksuddsbetalte kostnader konto XXXX"]
[null,"Fakturanr","Forskuddsbetalt beløp bokført","Totalbeløp faktura","Periode forskuddsbetaling gjelder","Kommentar","Vedleggs-henvisning"]
[]
[]
[]
[]
[]
[]
[]
[]
[]
[]
[]
[]
[null,null,{"$f":"SUM(C11:C21)","v":0},{"$f":"SUM(D11:D21)","v":0}]
[null,"Beløp HB"]
[null,"Avvik",{"$f":"+C22-C23","v":0}]
[]
[]
[null,"Spesifikasjon forksuddsbetalte kostnader konto XXXX"]
[null,"Fakturanr","Forskuddsbetalt beløp bokført","Totalbeløp faktura","Periode forskuddsbetaling gjelder","Kommentar","Vedleggs-henvisning"]
[]
[]
[]
[]
[]
[]
[]
[]
[]
[]
[]
[]
[null,null,{"$f":"SUM(C30:C40)","v":0},{"$f":"SUM(D30:D40)","v":0}]
[null,"Beløp HB"]
[null,"Avvik",{"$f":"+C41-C42","v":0}]
[]
[]
[null,"Spesifikasjon forksuddsbetalte kostnader konto XXXX"]
[null,"Fakturanr","Forskuddsbetalt beløp bokført","Totalbeløp faktura","Periode forskuddsbetaling gjelder","Kommentar","Vedleggs-henvisning"]
[]
[]
[]
[]
[]
[]
[]
[]
[]
[]
[]
[]
[null,null,{"$f":"SUM(C49:C59)","v":0},{"$f":"SUM(D49:D59)","v":0}]
[null,"Beløp HB"]
[null,"Avvik",{"$f":"+C60-C61","v":0}]
[]
[]
[null,"Spesifikasjon forksuddsbetalte kostnader konto XXXX"]
[null,"Fakturanr","Forskuddsbetalt beløp bokført","Totalbeløp faktura","Periode forskuddsbetaling gjelder","Kommentar","Vedleggs-henvisning"]
[]
[]
[]
[]
[]
[]
[]
[]
[]
[]
[]
[]
[null,null,{"$f":"SUM(C68:C78)","v":0},{"$f":"SUM(D68:D78)","v":0}]
[null,"Beløp HB"]
[null,"Avvik",{"$f":"+C79-C80","v":0}]
[]
[]
[null,"Spesifikasjon forksuddsbetalte kostnader konto XXXX"]
[null,"Fakturanr","Forskuddsbetalt beløp bokført","Totalbeløp faktura","Periode forskuddsbetaling gjelder","Kommentar","Vedleggs-henvisning"]
[]
[]
[]
[]
[]
[]
[]
[]
[]
[]
[]
[]
[null,null,{"$f":"SUM(C87:C97)","v":0},{"$f":"SUM(D87:D97)","v":0}]
[null,"Beløp HB"]
[null,"Avvik",{"$f":"+C98-C99","v":0}]

{"sheet":"Andre fordringer","index":11,"n_rows":100,"n_cols":8,"rows_kept":100,"cut":false,"hidden":true,"merged":[[45,1,45,7],[46,1,47,1],[46,2,47,2],[46,3,47,3],[46,4,47,4],[46,6,47,6],[46,7,47,7],[26,1,26,7],[27,1,28,1],[27,2,28,2],[27,3,28,3],[27,4,28,4],[27,6,28,6],[27,7,28,7],[8,7,9,7],[0,1,1,7],[3,1,5,7],[7,1,7,7],[8,1,9,1],[8,2,9,2],[8,3,9,3],[8,4,9,4],[8,6,9,6],[64,1,64,7],[65,1,66,1],[65,2,66,2],[65,3,66,3],[65,4,66,4],[65,6,66,6],[65,7,66,7],[83,1,83,7],[84,1,85,1],[84,2,85,2],[84,3,85,3],[84,4,85,4],[84,6,85,6],[84,7,85,7]]}
[null,"Andre fordringer"]
[]
[]
[null,"Veiledning: \n1. Fyll inn tabell for spesifikasjon av andre fordringer. Fyll inn én tabell pr konto, oppgi kontonavn i overskrift og legg underliggende dokumentasjon med årsoppgjørspakken, nummerer den og gi henvisning i tabellen nedenfor. "]
[]
[]
[]
[null,"Spesifikasjon andre fordringer konto XXXX"]
[null,"Bilagsnr","Beløp bokført fordring","Type fordring","Type underliggende dokumentasjon","Periode fordring gjelder","Kommentar","Vedleggs-henvisning"]
[]
[]
[]
[]
[]
[]
[]
[]
[]
[]
[]
[]
[null,null,{"$f":"SUM(C11:C21)","v":0}]
[null,"Beløp HB"]
[null,"Avvik",{"$f":"+C22-C23","v":0}]
[]
[]
[null,"Spesifikasjon andre fordringer konto XXXX"]
[null,"Bilagsnr","Beløp bokført fordring","Type fordring","Type underliggende dokumentasjon","Periode fordring gjelder","Kommentar","Vedleggs-henvisning"]
[]
[]
[]
[]
[]
[]
[]
[]
[]
[]
[]
[]
[null,null,{"$f":"SUM(C30:C40)","v":0}]
[null,"Beløp HB"]
[null,"Avvik",{"$f":"+C41-C42","v":0}]
[]
[]
[null,"Spesifikasjon andre fordringer konto XXXX"]
[null,"Bilagsnr","Beløp bokført fordring","Type fordring","Type underliggende dokumentasjon","Periode fordring gjelder","Kommentar","Vedleggs-henvisning"]
[]
[]
[]
[]
[]
[]
[]
[]
[]
[]
[]
[]
[null,null,{"$f":"SUM(C49:C59)","v":0}]
[null,"Beløp HB"]
[null,"Avvik",{"$f":"+C60-C61","v":0}]
[]
[]
[null,"Spesifikasjon andre fordringer konto XXXX"]
[null,"Bilagsnr","Beløp bokført fordring","Type fordring","Type underliggende dokumentasjon","Periode fordring gjelder","Kommentar","Vedleggs-henvisning"]
[]
[]
[]
[]
[]
[]
[]
[]
[]
[]
[]
[]
[null,null,{"$f":"SUM(C68:C78)","v":0}]
[null,"Beløp HB"]
[null,"Avvik",{"$f":"+C79-C80","v":0}]
[]
[]
[null,"Spesifikasjon andre fordringer konto XXXX"]
[null,"Bilagsnr","Beløp bokført fordring","Type fordring","Type underliggende dokumentasjon","Periode fordring gjelder","Kommentar","Vedleggs-henvisning"]
[]
[]
[]
[]
[]
[]
[]
[]
[]
[]
[]
[]
[null,null,{"$f":"SUM(C87:C97)","v":0}]
[null,"Beløp HB"]
[null,"Avvik",{"$f":"+C98-C99","v":0}]

{"sheet":"Varige driftsmidler","index":12,"n_rows":46,"n_cols":10,"rows_kept":46,"cut":false,"hidden":true,"merged":[[44,1,44,6],[45,1,47,6],[0,1,1,9],[3,1,6,9],[25,1,25,9],[26,1,27,1],[26,6,27,6],[26,7,27,7],[26,9,27,9],[26,5,27,5],[10,1,10,2]]}
[null,"Varige driftsmidler"]
[]
[]
[null,"Veiledning: \n1. Fyll inn tabell for overordnet avstemming av årets bevegelser i varige driftsmidler.\n2. Fyll inn tabell hvor driftsmidlene spesifiseres iht inndeling i notene, legg inn tilganger, avganger (til kostpris), tilhørende akkumulerte avskrivninger avganger og avskrivninger. Underliggende dokumentasjon knyttet til tilganger og avganger legges ved årsoppgjørspakken, nummerer dokumentasjonen og gi henvisning i tabellen nedenfor."]
[]
[]
[]
[]
[]
[]
[null,"1) Avstemming årets bevegelser"]
[null,"IB"]
[null,"Tilganger"]
[null,"Avganger"]
[null,"Avskrivninger"]
[null,"UB",{"$f":"C12+C13-C14-C15","v":0}]
[]
[null,"Netto bokført verdi"]
[null,"Avvik",{"$f":"C16-C18","v":0}]
[]
[null,"Verdi anleggskartotek"]
[null,"Avvik",{"$f":"C16-C19","v":0}]
[]
[]
[]
[null,"2) Spesifikasjon varige driftsmidler pr noteinndelingsgruppe"]
[null,"Driftsmiddel iht noteinndeling","IB 01.01.","Tilganger","Avganger","Akkumulerte avskrivninger avgang","Avskrivning","Beregnet UB","Kommentar","Vedleggs-henvisning"]
[null,null,{"$f":"+Forside!$B$18","v":2024},null,"(kostpris)"]
[null,null,null,null,null,null,null,{"$f":"C29+D29-E29+F29-G29","v":0}]
[null,null,null,null,null,null,null,{"$f":"C30+D30-E30+F30-G30","v":0}]
[null,null,null,null,null,null,null,0]
[null,null,null,null,null,null,null,0]
[null,null,null,null,null,null,null,0]
[null,null,null,null,null,null,null,0]
[null,null,null,null,null,null,null,0]
[null,null,null,null,null,null,null,0]
[null,null,null,null,null,null,null,0]
[null,null,null,null,null,null,null,0]
[null,null,null,null,null,null,null,0]
[null,null,{"$f":"SUM(C29:C39)","v":0},{"$f":"SUM(D29:D39)","v":0},{"$f":"SUM(E29:E39)","v":0},0,{"$f":"SUM(G29:G39)","v":0},{"$f":"SUM(H29:H39)","v":0}]
[null,null,null,null,null,null,"Saldo driftsmidler HB"]
[null,null,null,null,null,null,"Avvik",{"$f":"+H40-H41","v":0}]
[null,null,null,null,null,null,"Notehenvisning ved avvik"]
[]
[null,{"$f":"\"Note \"&H43","v":"Note "}]
[null,"Avvik mellom saldo HB og spesifikasjon skyldes:"]

{"sheet":"Mellomværende nærstående","index":13,"n_rows":95,"n_cols":11,"rows_kept":95,"cut":false,"hidden":true,"merged":[[67,4,67,5],[30,5,31,5],[48,1,48,9],[0,1,1,10],[3,1,8,10],[11,1,11,10],[12,1,13,1],[12,2,13,2],[12,3,13,3],[12,6,13,6],[12,8,13,8],[12,10,13,10],[78,1,78,7],[79,7,81,7],[29,1,29,7],[30,1,31,1],[30,2,31,2],[30,3,31,3],[30,4,31,4],[30,6,31,6],[30,7,31,7],[79,1,81,1],[79,2,81,2],[79,3,81,3],[79,4,81,4],[79,5,81,5],[70,1,70,5],[71,1,73,5]]}
[null,"Mellomværende nærstående"]
[]
[]
[null,"Veiledning: \nFyll inn tabellene nedenfor for spesifikasjon av de ulike type mellomværende selskapet har. Legg avtaler og annen underliggende dokumentasjon for både lån og renter med som vedlegg til årsoppgjørspakken.\n1. Spesifikasjon av Lån til TS/FKV/aksjonær. \n2. Spesifikasjon av  andre konserninterne fordringer.\n3. Spesifikasjon av annen konsernintern langsiktig gjeld, med tilhørende rentekostnader.\n4. Spesifikasjon av annen konsernintern kortsiktig gjeld. "]
[]
[]
[]
[]
[]
[]
[]
[null,"1)  Spesifikasjon av lån til TS/FKV/aksjonær"]
[null,"Kontonr","Kontonavn","IB lån","Tilganger","Nedbetalinger","Aktiverte renter","Renter inntektsført","UB lån","Kommentar","Vedleggs-henvisning"]
[]
[null,null,null,null,null,null,null,null,{"$f":"D15+E15-F15+G15","v":0}]
[null,null,null,null,null,null,null,null,{"$f":"D16+E16-F16+G16","v":0}]
[null,null,null,null,null,null,null,null,0]
[null,null,null,null,null,null,null,null,0]
[null,null,null,null,null,null,null,null,0]
[null,null,null,null,null,null,null,null,0]
[null,null,null,null,null,null,null,null,0]
[null,null,null,null,null,null,null,null,0]
[null,null,null,null,null,null,null,null,0]
[null,null,null,null,null,null,null,null,0]
[null,null,null,{"$f":"SUM(D15:D24)","v":0},0,0,0,0,0]
[]
[]
[]
[]
[null,"2) Spesifikasjon andre fordringer TS/FKV/aksjonær konto XXXX"]
[null,"Bilagsnr","Beløp bokført fordring","Type fordring","Type underliggende dokumentasjon","Periode fordring gjelder","Kommentar","Vedleggs-henvisning"]
[]
[]
[]
[]
[]
[]
[]
[]
[]
[]
[]
[null,null,{"$f":"SUM(C33:C42)","v":0}]
[null,"Beløp HB"]
[null,"Avvik",{"$f":"+C43-C44","v":0}]
[]
[]
[]
[null,"3) Spesifikasjon av langsiktig gjeld TS/FKV/aksjonær"]
[null,"Kontonr","Kontonavn","Saldo HB","Saldo iht underliggende dokumentasjon","Akkumulerte renter ført mot lån","Avvik mellom HB og underliggende dokumentasjon","Renter inneværende år iht underliggende dokumentasjon","Kommentar","Vedleggs-henvisning (både lån og renteberegning)"]
[null,null,null,null,null,null,{"$f":"D51-E51-F51","v":0}]
[null,null,null,null,null,null,{"$f":"D52-E52","v":0}]
[null,null,null,null,null,null,0]
[null,null,null,null,null,null,0]
[null,null,null,null,null,null,0]
[null,null,null,null,null,null,0]
[null,null,null,null,null,null,0]
[null,null,null,null,null,null,0]
[null,null,null,null,null,null,0]
[null,null,null,null,null,null,0]
[null,null,null,{"$f":"SUM(D51:D60)","v":0},{"$f":"SUM(E51:E60)","v":0},0,{"$f":"SUM(G51:G60)","v":0},{"$f":"SUM(H51:H60)","v":0}]
[]
[null,null,null,null,"Bokførte rentekostnader i HB knyttet til langsiktig lån"]
[null,null,null,null,"Konto XX"]
[null,null,null,null,"Konto XX"]
[null,null,null,null,"Sum bokførte rentekostnader",null,{"$f":"G64+G65","v":0}]
[null,null,null,null,"Avvik",null,{"$f":"H61-G66","v":0}]
[null,null,null,null,"Notehenvisning for eventuelle åpne poster"]
[]
[]
[null,{"$f":"\"Note \"&G68","v":"Note "}]
[null,"Avvik mellom rentekostnader HB og renter iht underliggende dokumentasjon skyldes:"]
[]
[]
[]
[]
[]
[]
[null,"4) Spesifikasjon av annen kortsiktig gjeld TS/FKV/aksjonær konto XXXX"]
[null,"Beskrivelse","Bokført beløp","Type underliggende dokumentasjon (faktura, beregning osv)","Periode avsetningen gjelder","Totalbeløp iht underliggende dokumentasjon","Kommentar","Vedleggs-henvisning"]
[]
[]
[]
[]
[]
[]
[]
[]
[]
[]
[]
[]
[null,null,{"$f":"SUM(C83:C92)","v":0},null,null,{"$f":"SUM(F83:F92)","v":0}]
[null,"Beløp HB"]
[null,"Avvik",{"$f":"+C93-C94","v":0}]

{"sheet":"Konsernmellomværende","index":14,"n_rows":111,"n_cols":11,"rows_kept":111,"cut":false,"hidden":true,"merged":[[93,1,93,7],[94,1,96,1],[94,2,96,2],[94,3,96,3],[94,4,96,4],[94,5,96,5],[94,7,96,7],[34,1,34,7],[82,1,82,9],[24,1,24,9],[0,1,1,10],[3,1,10,10],[13,1,13,10],[14,1,15,1],[14,2,15,2],[14,3,15,3],[14,6,15,6],[14,8,15,8],[14,10,15,10],[76,1,76,5],[77,1,79,5],[53,1,53,8],[35,4,36,4]]}
[null,"Konsernmellomværende"]
[]
[]
[null,"Veiledning: \nFyll inn tabellene nedenfor for spesifikasjon av de ulike typene konsernmellomværende selskapet har. Legg avtaler og annen underliggende dokumentasjon for både lån og renter med som vedlegg til årsoppgjørspakken.\n1. Spesifikasjon av lån til døtre.\n2. Spesifikasjon av konserninterne kundefordringer. \n3. Spesifikasjon av andre konserninterne fordringer. \n4. Spesifikasjon av annen konsernintern langsiktig gjeld med tilhørende rentekostnader. \n5. Spesifikasjon av konsernintern leverandørgjeld. \n6. Spesifikasjon av annen konsernintern kortsiktig gjeld. "]
[]
[]
[]
[]
[]
[]
[]
[]
[]
[null,"1)  Spesifikasjon av lån til døtre"]
[null,"Kontonr","Kontonavn","IB lån","Tilganger","Nedbetalinger","Renter bokført mot fordring","Renter inntektsført","UB lån","Kommentar","Vedleggs-henvisning"]
[]
[null,null,null,null,null,null,null,null,{"$f":"D17+E17-F17+G17","v":0}]
[null,null,null,null,null,null,null,null,{"$f":"D18+E18-F18+G18","v":0}]
[null,null,null,null,null,null,null,null,0]
[null,null,null,null,null,null,null,null,0]
[null,null,null,null,null,null,null,null,0]
[null,null,null,{"$f":"SUM(D17:D21)","v":0},0,0,0,0,0]
[]
[]
[null,"2) Avstemming konsernintern kundereskontro pr 31.12."]
[null,"Kontonummer","Kontonavn","Saldo HB pr 31.12.","Saldo iht kundereskontro","Avvik mellom HB og kundereskontro","Saldo iht leverandør-reskontro motpart","Avvik konserninternt","Forklaring til eventuelle avvik","Henvisning til vedlagt reskontro"]
[null,null,null,null,null,{"$f":"D27-E27","v":0},null,{"$f":"+E27-G27","v":0}]
[null,null,null,null,null,{"$f":"D28-E28","v":0},null,{"$f":"+E28-G28","v":0}]
[null,null,null,null,null,0,null,0]
[null,null,null,null,null,0,null,0]
[null,null,null,null,null,0,null,0]
[null,"Sum",null,{"$f":"SUM(D27:D31)","v":0},{"$f":"SUM(E27:E31)","v":0},0,null,{"$f":"SUM(H27:H31)","v":0}]
[]
[]
[null,"3) Spesifikasjon andre fordringer konto XXXX"]
[null,"Bilagsnr","Beløp bokført fordring","Type fordring","Type underliggende dokumentasjon","Periode fordring gjelder","Kommentar","Vedleggshenvisning"]
[]
[]
[]
[]
[]
[]
[]
[]
[]
[]
[]
[]
[null,null,{"$f":"SUM(C38:C48)","v":0}]
[null,"Beløp HB"]
[null,"Avvik",{"$f":"+C49-C50","v":0}]
[]
[]
[null,"4) Spesifikasjon av konsernintern langsiktig gjeld"]
[null,"Kontonr","Kontonavn","Saldo HB","Saldo iht underliggende dokumentasjon","Avvik mellom HB og underliggende dokumentasjon","Renter inneværende år iht underliggende dokumentasjon","Kommentar","Vedleggshenvisning (både lån og renteberegning)"]
[null,null,null,null,null,{"$f":"D56-E56","v":0}]
[null,null,null,null,null,{"$f":"D57-E57","v":0}]
[null,null,null,null,null,0]
[null,null,null,null,null,0]
[null,null,null,null,null,0]
[null,null,null,null,null,0]
[null,null,null,null,null,0]
[null,null,null,null,null,0]
[null,null,null,null,null,0]
[null,null,null,null,null,0]
[null,null,null,null,null,0]
[null,null,null,{"$f":"SUM(D56:D66)","v":0},{"$f":"SUM(E56:E66)","v":0},{"$f":"SUM(F56:F66)","v":0},{"$f":"SUM(G56:G66)","v":0}]
[]
[null,null,null,null,"Bokførte rentekostnader i HB knyttet til langsiktig lån"]
[null,null,null,null,"Konto XX"]
[null,null,null,null,"Konto XX"]
[null,null,null,null,"Sum bokførte rentekostnader",null,{"$f":"G70+G71","v":0}]
[null,null,null,null,"Avvik",null,{"$f":"G67-G72","v":0}]
[null,null,null,null,"Notehenvisning for eventuelle åpne poster"]
[]
[]
[null,{"$f":"\"Note \"&G74","v":"Note "}]
[null,"Avvik mellom rentekostnader HB og renter iht underliggende dokumentasjon skyldes:"]
[]
[]
[]
[]
[null,"5) Avstemming konsernintern leverandørreskontro pr 31.12."]
[null,"Kontonummer","Kontonavn","Saldo HB pr 31.12.","Saldo iht leverandørreskontro","Avvik mellom HB og leverandørreskontro","Saldo iht kunde-reskontro motpart","Avvik konserninternt","Forklaring til eventuelle avvik","Henvisning til vedlagt reskontro"]
[null,null,null,null,null,{"$f":"D85-E85","v":0},null,{"$f":"+E85-G85","v":0}]
[null,null,null,null,null,{"$f":"D86-E86","v":0},null,{"$f":"+E86-G86","v":0}]
[null,null,null,null,null,0,null,0]
[null,null,null,null,null,0,null,0]
[null,null,null,null,null,0,null,0]
[null,"Sum",null,{"$f":"SUM(D85:D89)","v":0},{"$f":"SUM(E85:E89)","v":0},0,null,{"$f":"SUM(H85:H89)","v":0}]
[]
[]
[]
[null,"6) Spesifikasjon av annen konsernintern kortsiktig gjeld konto XXXX"]
[null,"Beskrivelse","Bokført beløp","Type underliggende dokumentasjon (faktura, beregning, avtaler, osv)","Periode avsetningen gjelder","Totalbeløp iht underliggende dokumentasjon","Kommentar","Vedleggs-henvisning"]
[]
[]
[]
[]
[]
[]
[]
[]
[]
[]
[]
[]
[]
[null,null,{"$f":"SUM(C98:C108)","v":0},null,null,{"$f":"SUM(F98:F108)","v":0}]
[null,"Beløp HB"]
[null,"Avvik",{"$f":"+C109-C110","v":0}]

{"sheet":"Immaterielle eiendeler","index":15,"n_rows":44,"n_cols":10,"rows_kept":44,"cut":false,"hidden":true,"merged":[[42,1,42,6],[43,1,45,6],[0,1,1,9],[3,1,8,9],[23,1,23,9],[24,1,25,1],[24,5,25,5],[24,6,25,6],[24,7,25,7],[24,9,25,9],[10,1,10,2]]}
[null,"IMMATERIELLE EIENDELER"]
[]
[]
[null,"Veiledning: \n1. Fyll inn tabell for overordnet avstemming av årets bevegelser i immaterielle eiendeler.\n2. Fyll inn tabell hvor immaterielle eiendeler spesifiseres iht inndeling i notene, legg inn tilganger, avganger (til kostpris), tilhørende akkumulerte avskrivninger avganger og avskrivninger. Underliggende dokumentasjon knyttet til tilganger og avganger legges ved årsoppgjørspakken, nummerer dokumentasjonen og gi henvisning i tabellen nedenfor.\nMERK: Goodwill ved oppkjøp eller fusjon skal spesifiseres på transaksjonsnivå. Dersom Goodwill avskrives over en lengre periode enn 5 år skal dette begrunnes særskilt, jf. Regnskapsloven § 7-14 og §7-39. Legg vurderingen ved årsoppgjørspakken, gi henvisning i tabell nedenfor. \n"]
[]
[]
[]
[]
[]
[]
[null,"1) Avstemming årets bevegelser"]
[null,"IB"]
[null,"Tilganger"]
[null,"Avganger"]
[null,"Avskrivninger"]
[null,"UB",{"$f":"C12+C13-C14-C15","v":0}]
[]
[null,"Netto bokført verdi"]
[null,"Avvik",{"$f":"C16-C18","v":0}]
[]
[null,"Verdi anleggskartotek"]
[null,"Avvik",{"$f":"C16-C19","v":0}]
[]
[null,"1) Spesifikasjon immaterielle eiendeler pr noteinndelingsgruppe"]
[null,"Immateriell eiendel iht noteinndeling","IB 01.01.","Tilganger","Avganger","Akkumulerte avskrivninger avgang","Avskrivning","Beregnet UB","Kommentar","Vedleggs-henvisning"]
[null,null,{"$f":"+Forside!$B$18","v":2024},null,"(kostpris)"]
[null,null,null,null,null,null,null,{"$f":"C27+D27-E27+F27-G27","v":0}]
[null,null,null,null,null,null,null,{"$f":"C28+D28-E28+F28-G28","v":0}]
[null,null,null,null,null,null,null,0]
[null,null,null,null,null,null,null,0]
[null,null,null,null,null,null,null,0]
[null,null,null,null,null,null,null,0]
[null,null,null,null,null,null,null,0]
[null,null,null,null,null,null,null,0]
[null,null,null,null,null,null,null,0]
[null,null,null,null,null,null,null,0]
[null,null,null,null,null,null,null,0]
[null,null,{"$f":"SUM(C27:C37)","v":0},{"$f":"SUM(D27:D37)","v":0},{"$f":"SUM(E27:E37)","v":0},0,{"$f":"SUM(G27:G37)","v":0},{"$f":"SUM(H27:H37)","v":0}]
[null,null,null,null,null,null,"Saldo imm. eiendeler HB"]
[null,null,null,null,null,null,"Avvik",{"$f":"+H38-H39","v":0}]
[null,null,null,null,null,null,"Notehenvisning ved avvik"]
[]
[null,{"$f":"\"Note \"&H41","v":"Note "}]
[null,"Avvik mellom saldo HB og spesifikasjon skyldes:"]

{"sheet":"Langsiktige investeringer","index":16,"n_rows":176,"n_cols":14,"rows_kept":176,"cut":false,"hidden":true,"merged":[[175,1,175,7],[79,1,79,7],[80,1,82,7],[92,1,92,7],[108,1,109,1],[108,2,109,2],[108,7,109,7],[176,1,178,7],[11,3,12,3],[108,3,109,3],[161,1,163,7],[165,1,165,7],[166,1,168,7],[170,1,170,7],[171,1,173,7],[150,1,150,7],[151,1,153,7],[155,1,155,7],[156,1,158,7],[160,1,160,7],[136,1,138,7],[140,1,140,7],[141,1,143,7],[145,1,145,7],[146,1,148,7],[11,7,12,7],[125,1,125,7],[126,1,128,7],[130,1,130,7],[131,1,133,7],[135,1,135,7],[11,12,12,12],[11,13,12,13],[22,1,22,7],[23,1,25,7],[84,1,84,13],[97,1,97,7],[85,1,86,1],[85,2,86,2],[85,3,86,3],[85,4,86,4],[85,6,86,6],[85,7,86,7],[85,8,86,8],[85,9,86,9],[85,10,86,10],[98,1,100,7],[102,1,102,7],[69,1,69,7],[28,1,30,7],[32,1,32,7],[33,1,35,7],[37,1,37,7],[38,1,40,7],[42,1,42,7],[43,1,45,7],[59,1,59,7],[60,1,62,7],[64,1,64,7],[65,1,67,7],[49,1,50,1],[49,2,50,2],[49,3,50,3],[0,1,1,13],[3,1,8,13],[48,1,48,13],[49,11,50,11],[49,12,50,12],[49,13,50,13],[11,6,12,6],[11,4,12,4],[49,9,50,9],[49,10,50,10],[49,4,50,4],[49,6,50,6],[49,7,50,7],[10,1,10,13],[49,8,50,8],[27,1,27,7],[11,1,12,1],[11,2,12,2],[11,8,12,8],[11,9,12,9],[11,10,12,10],[11,11,12,11],[70,1,72,7],[74,1,74,7],[75,1,77,7],[103,1,105,7],[108,4,109,4],[108,6,109,6],[107,1,107,13],[85,11,86,11],[85,12,86,12],[85,13,86,13],[93,1,95,7],[108,8,109,8],[108,9,109,9],[108,10,109,10],[108,11,109,11],[108,12,109,12],[108,13,109,13]]}
[null,"Langsiktige investeringer"]
[]
[]
[null,"Veiledning: \n1. Fyll inn tabell ved å spesifisere pr investering i datterselskaper, og inkluder eventuelle endringer ila året. Alle langsiktige investeringer skal ha en verdivurdering, denne legges inn i notene som automatisk vises når det legges inn notehenvisning . Underliggende dokumentasjon legges ved årsoppgjørspakken, nummerer den og gi henvisning i kolonne \"K\".\n2. Fyll inn tilsvarende tabell for TS (tilknyttede selskap).\n3. Fyll inn tilsvarende tabell for FKV (Felleskontrollert virksomhet).\n4. Fyll inn tilsvarende tabell for eksterne investeringer."]
[]
[]
[]
[]
[]
[]
[null,"1) Spesifikasjon av investeringer i døtre"]
[null,"Kontonr","Kontonavn","Beskrivelse investering","Antall aksjer","Kostpris","Tidligere nedskrivninger","IB","Tilganger","Avganger","Årets nedskrivning","UB ","Notehenvisning verdivurdering","Vedleggs-henvisning"]
[]
[null,null,null,null,null,null,null,null,null,null,null,0]
[null,null,null,null,null,null,null,null,null,null,null,{"$f":"H15+I15-J15-K15","v":0}]
[null,null,null,null,null,null,null,null,null,null,null,0]
[null,null,null,null,null,null,null,null,null,null,null,0]
[null,null,null,null,null,null,null,null,null,null,null,0]
[null,null,null,null,null,null,{"$f":"SUM(G14:G18)","v":0},{"$f":"SUM(H14:H18)","v":0},0,0,0,0]
[]
[]
[]
[null,{"$f":"\"Note \"&M14","v":"Note "}]
[]
[]
[]
[]
[null,{"$f":"\"Note \"&M15","v":"Note "}]
[]
[]
[]
[]
[null,{"$f":"\"Note \"&M16","v":"Note "}]
[]
[]
[]
[]
[null,{"$f":"\"Note \"&M17","v":"Note "}]
[]
[]
[]
[]
[null,{"$f":"\"Note \"&M18","v":"Note "}]
[]
[]
[]
[]
[]
[null,"2) Spesifikasjon av investeringer i TS"]
[null,"Kontonr","Kontonavn","Beskrivelse investering","Antall aksjer","Kostpris","Tidligere nedskrivninger","IB","Tilganger","Avganger","Årets nedskrivning","UB ","Notehenvisning verdivurdering","Vedleggs-henvisning"]
[]
[null,null,null,null,null,null,null,null,null,null,null,{"$f":"H52+I52-J52-K52","v":0}]
[null,null,null,null,null,null,null,null,null,null,null,{"$f":"H53+I53-J53-K53","v":0}]
[null,null,null,null,null,null,null,null,null,null,null,0]
[null,null,null,null,null,null,null,null,null,null,null,0]
[null,null,null,null,null,null,null,null,null,null,null,0]
[null,null,null,null,null,null,{"$f":"SUM(G52:G56)","v":0},{"$f":"SUM(H52:H56)","v":0},{"$f":"SUM(I52:I56)","v":0},{"$f":"SUM(J52:J56)","v":0},{"$f":"SUM(K52:K56)","v":0},{"$f":"SUM(L52:L56)","v":0}]
[]
[]
[null,{"$f":"\"Note \"&M52","v":"Note "}]
[]
[]
[]
[]
[null,{"$f":"\"Note \"&M53","v":"Note "}]
[]
[]
[]
[]
[null,{"$f":"\"Note \"&M54","v":"Note "}]
[]
[]
[]
[]
[null,{"$f":"\"Note \"&M55","v":"Note "}]
[]
[]
[]
[]
[null,{"$f":"\"Note \"&M56","v":"Note "}]
[]
[]
[]
[]
[null,"3) Spesifikasjon av investeringer i FKV"]
[null,"Kontonr","Kontonavn","Beskrivelse investering","Antall aksjer","Kostpris","Tidligere nedskrivninger","IB","Tilganger","Avganger","Årets nedskrivning","UB ","Notehenvisning verdivurdering","Vedleggs-henvisning"]
[]
[null,null,null,null,null,null,null,null,null,null,null,{"$f":"H88+I88-J88-K88","v":0}]
[null,null,null,null,null,null,null,null,null,null,null,{"$f":"H89+I89-J89-K89","v":0}]
[null,null,null,null,null,null,null,null,null,null,null,0]
[null,null,null,null,null,null,{"$f":"SUM(G88:G90)","v":0},{"$f":"SUM(H88:H90)","v":0},0,0,0,{"$f":"SUM(L88:L90)","v":0}]
[]
[null,{"$f":"\"Note \"&M88","v":"Note "}]
[]
[]
[]
[]
[null,{"$f":"\"Note \"&M89","v":"Note "}]
[]
[]
[]
[]
[null,{"$f":"\"Note \"&M90","v":"Note "}]
[]
[]
[]
[]
[null,"4) Spesifikasjon av investeringer i andre foretak"]
[null,"Kontonr","Kontonavn","Beskrivelse investering","Antall aksjer","Kostpris","Tidligere nedskrivninger","IB","Tilganger","Avganger","Årets nedskrivning","UB ","Notehenvisning verdivurdering","Vedleggs-henvisning"]
[]
[null,null,null,null,null,null,null,null,null,null,null,{"$f":"H111+I111-J111-K111","v":0}]
[null,null,null,null,null,null,null,null,null,null,null,{"$f":"H112+I112-J112-K112","v":0}]
[null,null,null,null,null,null,null,null,null,null,null,0]
[null,null,null,null,null,null,null,null,null,null,null,0]
[null,null,null,null,null,null,null,null,null,null,null,0]
[null,null,null,null,null,null,null,null,null,null,null,0]
[null,null,null,null,null,null,null,null,null,null,null,0]
[null,null,null,null,null,null,null,null,null,null,null,0]
[null,null,null,null,null,null,null,null,null,null,null,0]
[null,null,null,null,null,null,null,null,null,null,null,0]
[null,null,null,null,null,null,null,null,null,null,null,0]
[null,null,null,null,null,null,{"$f":"SUM(G111:G121)","v":0},{"$f":"SUM(H111:H121)","v":0},{"$f":"SUM(I111:I121)","v":0},0,{"$f":"SUM(K111:K121)","v":0},{"$f":"SUM(L111:L121)","v":0}]
[]
[]
[]
[null,{"$f":"\"Note \"&M111","v":"Note "}]
[]
[]
[]
[]
[null,{"$f":"\"Note \"&M112","v":"Note "}]
[]
[]
[]
[]
[null,{"$f":"\"Note \"&M113","v":"Note "}]
[]
[]
[]
[]
[null,{"$f":"\"Note \"&M114","v":"Note "}]
[]
[]
[]
[]
[null,{"$f":"\"Note \"&M115","v":"Note "}]
[]
[]
[]
[]
[null,{"$f":"\"Note \"&M116","v":"Note "}]
[]
[]
[]
[]
[null,{"$f":"\"Note \"&M117","v":"Note "}]
[]
[]
[]
[]
[null,{"$f":"\"Note \"&M118","v":"Note "}]
[]
[]
[]
[]
[null,{"$f":"\"Note \"&M119","v":"Note "}]
[]
[]
[]
[]
[null,{"$f":"\"Note \"&M120","v":"Note "}]
[]
[]
[]
[]
[null,{"$f":"\"Note \"&M121","v":"Note "}]

{"sheet":"Leverandørgjeld","index":17,"n_rows":41,"n_cols":11,"rows_kept":41,"cut":false,"hidden":true,"merged":[[8,1,8,7],[19,1,19,7],[39,1,39,7],[0,1,1,10],[3,1,6,10],[41,1,41,2],[46,1,46,2],[29,1,29,10],[45,1,45,2],[44,1,44,2],[46,6,46,7],[40,6,40,7],[41,6,41,7],[42,6,42,7],[43,6,43,7],[44,6,44,7],[45,6,45,7],[43,1,43,2],[42,1,42,2]]}
[null,"LEVERANDØRGJELD"]
[]
[]
[null,"Veiledning: \n1. Fyll inn tabell med saldo leverandørgjeld iht hovedbok og saldo iht leverandørreskontro. Forklar avvik. Kopi av leverandørreskontro legges som vedelgg til denne årsoppgjørspakken, nummerer den og gi henvisning i tabellen nedenfor.  Utføres både pr 31.12. og 31.01 påfølgende år.\n2. Fyll inn tabell som spesifiserer større unormale poster i alle tilfeller hvor det foreligger større poster eldre enn 60 dager i reskontro, eventuelt dersom det foreligger større debetposter i reskontro.\n"]
[]
[]
[]
[]
[null,"1) Avstemming leverandørreskontro pr 31.12."]
[null,"Kontonr","Kontonavn","Saldo HB pr 31.12.","Saldo iht leverandørreskontro","Avvik mellom HB og leverandørreskontro","Forklaring til eventuelle avvik","Henvisning til vedlagt reskontro "]
[null,null,null,null,null,{"$f":"D11-E11","v":0}]
[null,null,null,null,null,{"$f":"D12-E12","v":0}]
[null,null,null,null,null,0]
[null,null,null,null,null,0]
[null,null,null,null,null,0]
[null,"Sum",null,{"$f":"SUM(D11:D15)","v":0},{"$f":"SUM(E11:E15)","v":0},0]
[]
[]
[]
[null,"1) Avstemming leverandørreskontro pr 31.01."]
[null,"Kontonr","Kontonavn","Saldo HB pr 31.01.","Saldo iht leverandørreskontro","Avvik mellom HB og leverandørreskontro","Forklaring til eventuelle avvik","Henvisning til vedlagt reskontro "]
[null,null,null,null,null,{"$f":"D22-E22","v":0}]
[null,null,null,null,null,{"$f":"D23-E23","v":0}]
[null,null,null,null,null,0]
[null,null,null,null,null,0]
[null,null,null,null,null,0]
[null,"Sum",null,{"$f":"SUM(D22:D26)","v":0},{"$f":"SUM(E22:E26)","v":0},0]
[]
[]
[null,"1) Avstemming leverandørreskontro utenlandsk valuta pr 31.12."]
[null,"Kontonr","Kontonavn","Saldo HB pr 31.12.\nNOK","Saldo iht leverandørreskontro\npålydende valuta","Valuta","Valutakurs iht Norges Bank pr balansetidspunkt","Saldo iht leverandørreskontro omregnet til NOK","Avvik mellom HB og leverandør-reskontro","Forklaring til eventuelle avvik","Henvisning til vedlagt reskontro"]
[null,null,null,null,null,null,null,{"$f":"+E32*G32","v":0},{"$f":"D32-H32","v":0}]
[null,null,null,null,null,null,null,{"$f":"+E33*G33","v":0},{"$f":"D33-H33","v":0}]
[null,null,null,null,null,null,null,0,0]
[null,null,null,null,null,null,null,0,0]
[null,null,null,null,null,null,null,0,0]
[null,"Sum",null,{"$f":"SUM(D32:D36)","v":0},{"$f":"SUM(E32:E36)","v":0},0,0,0,0]
[]
[]
[null,"2) Gjennomgang større unormale poster"]
[null,"Leverandørnavn/leverandørnr",null,"Utestående beløp>60 dager","Utestående beløp>90 dager","Utestående debetposter","Forklaring "]

{"sheet":"Annen kortsiktig gjeld","index":18,"n_rows":105,"n_cols":8,"rows_kept":105,"cut":false,"hidden":true,"merged":[[8,7,10,7],[0,1,1,7],[3,1,5,7],[7,1,7,7],[8,1,10,1],[8,2,10,2],[8,3,10,3],[8,4,10,4],[8,5,10,5],[27,1,27,7],[28,1,30,1],[28,2,30,2],[28,3,30,3],[28,4,30,4],[28,5,30,5],[28,7,30,7],[47,1,47,7],[48,1,50,1],[48,2,50,2],[48,3,50,3],[48,4,50,4],[48,5,50,5],[48,7,50,7],[67,1,67,7],[68,1,70,1],[68,2,70,2],[68,3,70,3],[68,4,70,4],[68,5,70,5],[68,7,70,7],[87,1,87,7],[88,1,90,1],[88,2,90,2],[88,3,90,3],[88,4,90,4],[88,5,90,5],[88,7,90,7]]}
[null,"Annen kortsiktig gjeld"]
[]
[]
[null,"Veiledning: \n1. Fyll inn tabell for spesifikasjon av annen kortsiktig gjeld. Fyll inn én tabell pr konto, oppgi kontonavn i overskrift og legg underliggende dokumentasjon med årsoppgjørspakken, nummerer den og gi henvisning i tabellen nedenfor. "]
[]
[]
[]
[null,"Spesifikasjon av annen kortsiktig gjeld konto XXXX"]
[null,"Beskrivelse","Bokført beløp","Type underliggende dokumentasjon (faktura, beregning osv)","Periode avsetningen gjelder","Totalbeløp iht underliggende dokumentasjon","Kommentar","Vedleggs-henvisning"]
[]
[]
[]
[]
[]
[]
[]
[]
[]
[]
[]
[]
[]
[null,null,{"$f":"SUM(C12:C22)","v":0},null,null,{"$f":"SUM(F12:F22)","v":0}]
[null,"Beløp HB"]
[null,"Avvik",{"$f":"+C23-C24","v":0}]
[]
[]
[null,"Spesifikasjon av annen kortsiktig gjeld konto XXXX"]
[null,"Beskrivelse","Bokført beløp","Type underliggende dokumentasjon (faktura, beregning osv)","Periode avsetningen gjelder","Totalbeløp iht underliggende dokumentasjon","Kommentar","Vedleggs-henvisning"]
[]
[]
[]
[]
[]
[]
[]
[]
[]
[]
[]
[]
[]
[null,null,{"$f":"SUM(C32:C42)","v":0},null,null,{"$f":"SUM(F32:F42)","v":0}]
[null,"Beløp HB"]
[null,"Avvik",{"$f":"+C43-C44","v":0}]
[]
[]
[null,"Spesifikasjon av annen kortsiktig gjeld konto XXXX"]
[null,"Beskrivelse","Bokført beløp","Type underliggende dokumentasjon (faktura, beregning osv)","Periode avsetningen gjelder","Totalbeløp iht underliggende dokumentasjon","Kommentar","Vedleggs-henvisning"]
[]
[]
[]
[]
[]
[]
[]
[]
[]
[]
[]
[]
[]
[null,null,{"$f":"SUM(C52:C62)","v":0},null,null,{"$f":"SUM(F52:F62)","v":0}]
[null,"Beløp HB"]
[null,"Avvik",{"$f":"+C63-C64","v":0}]
[]
[]
[null,"Spesifikasjon av annen kortsiktig gjeld konto XXXX"]
[null,"Beskrivelse","Bokført beløp","Type underliggende dokumentasjon (faktura, beregning osv)","Periode avsetningen gjelder","Totalbeløp iht underliggende dokumentasjon","Kommentar","Vedleggs-henvisning"]
[]
[]
[]
[]
[]
[]
[]
[]
[]
[]
[]
[]
[]
[null,null,{"$f":"SUM(C72:C82)","v":0},null,null,{"$f":"SUM(F72:F82)","v":0}]
[null,"Beløp HB"]
[null,"Avvik",{"$f":"+C83-C84","v":0}]
[]
[]
[null,"Spesifikasjon av annen kortsiktig gjeld konto XXXX"]
[null,"Beskrivelse","Bokført beløp","Type underliggende dokumentasjon (faktura, beregning osv)","Periode avsetningen gjelder","Totalbeløp iht underliggende dokumentasjon","Kommentar","Vedleggs-henvisning"]
[]
[]
[]
[]
[]
[]
[]
[]
[]
[]
[]
[]
[]
[null,null,{"$f":"SUM(C92:C102)","v":0},null,null,{"$f":"SUM(F92:F102)","v":0}]
[null,"Beløp HB"]
[null,"Avvik",{"$f":"+C103-C104","v":0}]

{"sheet":"Skattetrekk","index":19,"n_rows":22,"n_cols":8,"rows_kept":22,"cut":false,"hidden":true,"merged":[[7,1,7,7],[3,1,5,7],[0,1,1,7],[14,1,14,7],[11,6,11,7],[8,3,10,3],[8,4,10,4],[8,5,10,5],[8,2,10,2],[8,1,10,1],[8,6,10,7]]}
[null,"SKATTETREKK"]
[]
[]
[null,"Veiledning skattetrekk: \n1. Fyll inn avstemmingstabell for skattetrekk pr 6. termin.\n2. Fyll inn spesifikasjon av betalt skattetrekk gjennom året."]
[]
[]
[]
[null,"1) Avstemming skattetrekk pr 6. termin"]
[null,"Kontonr","Kontonavn","Beløp på konto","Skyldig skattetrekk iht. 6. terminoppgave:","Differanse mellom beløp bokført på konto og beløp iht. 6. terminoppgave","Kommentarer"]
[]
[]
[null,null,null,null,null,{"$f":"D12-E12","v":0}]
[]
[]
[null,"2) Spesifikasjon betalt skattetrekk"]
[null,"Termin","Skyldig skattetrekk","Saldo skattetrekkskonto pr terminslutt/skattetrekksgaranti","Betalt skattetrekk","Dato skattetrekk betalt","Bilagsnr for betalt skattetrekk","Kommentar"]
[null,1]
[null,2]
[null,3]
[null,4]
[null,5]
[null,6,{"$f":"+E12","v":0}]

{"sheet":"AGA","index":20,"n_rows":51,"n_cols":15,"rows_kept":51,"cut":false,"hidden":true,"merged":[[50,1,50,4],[35,6,35,7],[43,1,43,5],[44,1,44,4],[45,1,45,4],[46,1,46,3],[47,1,47,3],[37,1,37,5],[37,6,37,7],[38,1,38,4],[38,6,38,7],[39,1,39,4],[39,6,39,7],[40,1,40,4],[48,1,48,4],[49,1,49,4],[3,8,7,15],[8,8,8,15],[9,1,10,7],[40,6,40,7],[29,1,29,8],[0,1,1,7],[32,6,34,7],[3,1,7,7],[12,1,12,7],[12,8,12,14],[31,1,31,7],[32,1,34,1],[32,2,34,2],[32,3,34,3],[32,4,34,4],[32,5,34,5],[13,10,14,10]]}
[null,"ARBEIDSGIVERAVGIFT"]
[]
[]
[null,"Veiledning aga: \n1. Fyll inn sammendrag av innsendte a-meldinger vedrørende arbeidsgiveravgift.\n2. Fyll inn avstemmingstabell for aga pr 6. termin.\n3. Kontroller avstemming av grunnlag arbeidsgiveravgift\n4. Fyll inn informasjon i tabell for avstemming av kostnadsført arbeidsgiveravgift."]
[]
[]
[]
[]
[]
[null,"Vi gjør oppmerksom på at denne avstemmingen er forenklet ved at verken fribeløpsordningen, satser for sektorunntatte aktiviteter, satser for jordbruk, skogbruk mv samt bagatellmessig statsstøtte er hensyntatt i beregningen. \n\n2024: For arbeidstakere som mottar lønn og andre ytelser over 850 000 kr fra samme arbeidsgiver i inntekståret, skal det beregnes en ekstra arbeidsgiveravgift på 5 % av det overskytende i alle soner."]
[]
[]
[null,"1) Sammendrag av innsendte a-meldinger vedr arbeidsgiveravgift"]
[null,null,"Sone 1","Sone 1a*","Sone 2","Sone 3","Sone 4","Sone 4a","Sone 5","Sum avg.pl.","Grunnlag 5% ekstra aga","AGA","Bilagsnr/","AGA ","Avvik"]
[null,null,0.14099999999999999,0.14099999999999999,0.106,6.4000000000000001E-2,5.0999999999999997E-2,7.9000000000000001E-2,0,"ytelser",null,"beregnet","dato","betalt"]
[null,"Januar",null,null,null,null,null,null,null,{"$f":"SUM(C16:I16)","v":0},null,{"$f":"+C16*$C$15+D16*$D$15+E16*$E$15+F16*$F$15+G16*$G$15+H16*$H$15+I16*$I$15+(K16*0.05)","v":0},null,null,{"$f":"+L16-N16","v":0}]
[null,"Februar",null,null,null,null,null,null,null,0,null,{"$f":"+C17*$C$15+D17*$D$15+E17*$E$15+F17*$F$15+G17*$G$15+H17*$H$15+I17*$I$15+(K17*0.05)","v":0},null,null,{"$f":"+L17-N17","v":0}]
[null,"Mars",null,null,null,null,null,null,null,0,null,0,null,null,{"$f":"+L18-N18","v":0}]
[null,"April",null,null,null,null,null,null,null,0,null,0,null,null,{"$f":"+L19-N19","v":0}]
[null,"Mai",null,null,null,null,null,null,null,0,null,0,null,null,{"$f":"+L20-N20","v":0}]
[null,"Juni",null,null,null,null,null,null,null,0,null,0,null,null,0]
[null,"Juli",null,null,null,null,null,null,null,0,null,0,null,null,0]
[null,"August",null,null,null,null,null,null,null,0,null,0,null,null,{"$f":"+L23-N23","v":0}]
[null,"September",null,null,null,null,null,null,null,0,null,0,null,null,0]
[null,"Oktober",null,null,null,null,null,null,null,0,null,0,null,null,0]
[null,"November",null,null,null,null,null,null,null,0,null,0,null,null,0]
[null,"Desember",null,null,null,null,null,null,null,0,null,0,null,null,0]
[null,"Korreksjoner",null,null,null,null,null,null,null,0,null,0,null,null,0]
[null,"Sum",{"$f":"SUM(C16:C28)","v":0},{"$f":"SUM(D16:D28)","v":0},0,0,0,0,0,0,0,0,null,0,0]
[null,"* I sone 1a skal det svares arbeidsgiveravgift med 14,1 %, men likevel 10,6 % så lenge differansen mellom den avgift som ville følge av satser på henholdsvis 14,1 % og 10,6 % ikke overstiger grensene for bagatellmessig støtte. Bestemmelsene om redusert avgiftssats i sone Ia gjelder ikke foretak som er omfattet av helseforetaksloven, og statsforvaltningen som omfattes av reglene i folketrygdloven § 24-5 tredje ledd. \nDenne modellen beregner med 14,1%, og evt. satsjustering må foretas manuelt."]
[]
[null,"2) Avstemming arbeidsgiveravgift pr 6. termin"]
[null,"Kontonr","Kontonavn","Bokført beløp på konto","Skyldig arbeidsgiveravgift iht. A07 6.termin:","Differanse mellom beløp bokført på konto og beløp iht. A07 6. termin","Kommentarer"]
[]
[]
[null,null,null,null,{"$f":"+L26+L27+L28","v":0},{"$f":"D36-E36","v":0}]
[]
[null,"3) Avstemming av grunnlag arbeidsgiveravgift",null,null,null,null,"Kommentarer"]
[null,"Sum avgiftspliktige ytelser innrapporter",null,null,null,{"$f":"+J29","v":0}]
[null,"Kostnadsført i regnskapet - hentet fra skjema Kontrolloppstilling",null,null,null,{"$f":"+Kontrolloppstilling!H27","v":0},"Kan evt legges inn manuelt"]
[null,"Differanse (må forklares)",null,null,null,{"$f":"+F39-F40","v":0}]
[]
[]
[null,"3) Avstemming av kostnadsført arbeidsgiveravgift"]
[null,"Betalt AGA i år, januar til oktober",null,null,null,{"$f":"+N16+N17+N18+N19+N20+N21+N22+N23+N24+N25","v":0}]
[null,"Avsatt skyldig arb.g.avgift i balansen",null,null,null,{"$f":"+D36","v":0}]
[null,"+ avsatt AGA skyldige feriep. og skyldig lønn UB ",null,null,"(kontonr)"]
[null,"-avsatt AGA skyldige feriepenger og skyldig lønn IB ",null,null,"(kontonr)"]
[null,"Kalkulert årets AGA kostnad",null,null,null,{"$f":"F45+F46+F47-F48","v":0}]
[null,"Bokført kostnad AGA i regnskapet (kontonr)"]
[null,"Differanse (må forklares)",null,null,null,{"$f":"F49-F50","v":0}]

{"sheet":"Feriepenger","index":21,"n_rows":53,"n_cols":7,"rows_kept":53,"cut":false,"hidden":true,"merged":[[34,1,34,2],[31,1,31,2],[32,1,32,2],[41,1,41,6],[42,1,44,1],[42,2,44,2],[42,3,44,3],[42,4,44,4],[42,5,44,5],[42,6,44,6],[36,1,36,6],[37,1,39,6],[18,1,20,1],[18,2,20,2],[18,3,20,3],[0,1,1,6],[14,1,14,6],[3,1,11,6],[15,1,15,2],[16,1,16,2],[48,1,48,6],[49,1,51,1],[49,2,51,2],[49,3,51,3],[49,4,51,4],[49,5,51,5],[49,6,51,6]]}
[null,"FERIEPENGER"]
[]
[]
[null,"Veiledning feriepenger: \n1. Fyll inn antall ansatte, og antall ansatte over 60 år, dette forholdstallet benyttes til beregning av kostnaden for ekstra feriepengeuke for ansatte over 60 år. Dersom fordelingen av lønn på de ansatte tilsier at dette forholdstallet ikke blir rimelig å benytte i beregningen kan beregningen i D29 overstyres (f.eks. ved å hente direkte fra feriepengeliste) \n2. Legg inn de konti som er inkludert i feriepengegrunnlaget i tabellen. Dersom du trenger flere rader er det bare å legge dette inn (legg inn midt i tabell). Merk; feriepengesats på 12% kan endres. Avvik forklares. \n3. Fyll inn tabell 2 for å avstemme feriepengeliste mot avsatte feriepenger i balansen. Avvik forklares\n4. Avstem arbeidsgiveravgift på avsatte feriepenger. Dersom feriepengelisten ikke inneholder opplysninger om arbeidsgiveravgift på skyldige feriepenger beregnes dette ut fra grunnlag ganger aktuell sats. Avvik forklares"]
[]
[]
[]
[]
[]
[]
[]
[]
[]
[]
[null,"1) Avsatte feriepenger - spesifikasjon grunnlag"]
[null,"Antall ansatte"]
[null,"Antall ansatte over 60 år"]
[]
[null,"Kontonr lønnskostnad","Kontonavn lønnskostnad","Beløp på konto"]
[]
[]
[]
[]
[]
[]
[]
[]
[]
[null,"Sum feriepengegrunnlag",null,{"$f":"SUM(D22:D28)","v":0}]
[null,"Beregnet kostnad",0.12,{"$f":"+$D$29*$C$30","v":0}]
[null,"Beregnet kostnad ekstra ferieuke",2.3E-2,{"$f":"IFERROR(($D$29/$D$16*$D$17*$C$31),0)","v":0}]
[null,"Utbetalte feriepenger av årets lønn"]
[null,"Sum skyldige feriepenger",null,{"$f":"D30+D31-D32","v":0}]
[null,"Skyldig feriepenger iht feriepengeliste"]
[null,"Avvik",null,{"$f":"+D33-D34","v":0}]
[]
[null,"Note avvik feriepenger"]
[]
[]
[]
[]
[null,"2) Avstemming avsatte feriepenger i hovedbok mot spesifikasjon over"]
[null,"Kontonr","Kontonavn","Beløp på konto","Feriepenger iht feriepengeliste","Avvik mellom bokført og beregnede feriepenger","Kommentarer ved større avvik"]
[]
[]
[null,null,null,null,{"$f":"D34","v":0},{"$f":"D46-E46","v":0}]
[]
[]
[null,"3 )Avstemming arbeidsgiveravgift på avsatte feriepenger"]
[null,"Kontonr","Kontonavn","Beløp på konto","Arbeidsgiveravgift på feriepenger iht feriepengeliste","Avvik mellom bokført og beregnede feriepenger","Kommentarer ved større avvik"]
[]
[]
[null,null,null,null,null,{"$f":"D53-E53","v":0}]

{"sheet":"Kontrolloppstilling","index":22,"n_rows":34,"n_cols":10,"rows_kept":34,"cut":false,"hidden":true,"merged":[[32,2,32,5],[30,2,30,5],[3,1,6,9],[0,1,1,9],[28,2,28,4]]}
[null,"KONTROLLOPPSTILLING"]
[]
[]
[null,"Veiledning: \nLegg inn kostnadskonti i hovedbok som er oppgave- og arbeidsgiveravgiftspliktige. Juster for avsetninger over balansen (som feriepenger) i kolonne E og F. Sum kolonne H \"Arbeidsgiveravgiftspliktige ytelser\" skal stemme med \"Sum arbeidsgiveravgiftspliktige utbetalinger ihht A07 \" justert for \"Off. refusjon vedr. arbeidskraft inkl. arbeidsgiveravgift\" og \"Årets innbetaling av arbeidsgiveravgiftspliktige tilskudd til premier og pensjonsordning\", som fremgår av rapporten \"A07 Avstemmingsinformasjon for år 20XX\"."]
[]
[]
[]
[]
[null,"Konto-nummer","Kontonavn","Samlede kostnads-førte og registrerte lønnsopp-gave-pliktige ytelser i HB","Tillegg for kostnads-ført lønn etc. tidligere år, som er utbet. siste år","Fradrag for påløpt ikke forfalt lønn etc. siste år som ikke er innberettet","Samlede oppgave-pliktige ytelser ","Arbeidsgiver-avgifts-pliktige ytelser","Bokført beløp HB- konto","Differanse mellom kostnadsførte og lønnsoppgavepliktige ytelser i HB og Bokført beløp HB-konto"]
[null,null,null,null,null,null,{"$f":"+D10+E10-F10","v":0},null,null,{"$f":"+D10-I10","v":0}]
[null,null,null,null,null,null,{"$f":"+D11+E11-F11","v":0},null,null,{"$f":"+D11-I11","v":0}]
[null,null,null,null,null,null,0,null,null,0]
[null,null,null,null,null,null,0,null,null,0]
[null,null,null,null,null,null,0,null,null,0]
[null,null,null,null,null,null,0,null,null,0]
[null,null,null,null,null,null,0,null,null,0]
[null,null,null,null,null,null,0,null,null,0]
[null,null,null,null,null,null,0,null,null,0]
[null,null,null,null,null,null,0,null,null,0]
[null,null,null,null,null,null,0,null,null,0]
[null,null,null,null,null,null,0,null,null,0]
[null,null,null,null,null,null,0,null,null,0]
[null,null,null,null,null,null,0,null,null,0]
[null,null,null,null,null,null,0,null,null,0]
[null,null,null,null,null,null,0,null,null,0]
[null,null,null,null,null,null,0,null,null,0]
[null,"  SUM",null,{"$f":"SUM(D10:D26)","v":0},{"$f":"SUM(E10:E26)","v":0},{"$f":"SUM(F10:F26)","v":0},{"$f":"SUM(G10:G26)","v":0},{"$f":"SUM(H10:H26)","v":0},{"$f":"SUM(I10:I26)","v":0},0]
[null,null,"Off. refusjon vedr. arbeidskraft inkl. arbeidsgiveravgift"]
[null,null,"+Årets innbetaling av arbeidsgiveravgiftspliktige tilskudd og premier til pensjonsordning"]
[null,null,"SUM",null,null,null,{"$f":"+G27","v":0},{"$f":"+H27+H28+H29","v":0}]
[null,null,"Sum oppgavepliktige ytelser ihht A07 Avstemmingsinformasjon"]
[]
[null,null,"Arbeidsgiveravgiftspliktige utbetalinger ihht A07"]
[null,null,"Avvik",null,null,null,{"$f":"+G30-G31","v":0},{"$f":"+H30-H33","v":0}]

{"sheet":"MVA totalavstemming","index":23,"n_rows":86,"n_cols":12,"rows_kept":86,"cut":false,"hidden":true,"merged":[[0,1,1,11],[82,2,84,3],[85,2,85,3],[85,4,85,5],[85,8,85,10],[3,1,5,11],[7,1,7,11],[81,1,81,10],[82,1,84,1],[82,4,84,5],[82,6,84,6],[82,7,84,7],[82,8,84,10]]}
[null,"MVA TOTALAVSTEMMING"]
[]
[]
[null,"Veiledning: \n1) Fyll ut avstemmingsskjema nedenfor ved å legge inn informasjon fra innsendt skattemelding for mva pr termin. Dersom det er sendt inn tilleggsoppgaver, trykk \"unhide\" mellom gjeldende kolonner for teminene. Differanser må forklares\n2) Avstem skyldig/til gode mva pr 6.termin i egen tabell"]
[]
[]
[]
[null,"1) Totalavstemming MVA gjennom året"]
[null,"Kode  ","Termin  ",null,null,"1","2","3","4","5",6]
[null,null,"Tekst",null,"+/–","Jan/Feb","Mars/April","Mai/Juni","Juli/Aug","Sept/Okt","Nov/Des","Sum"]
[null,null,"A. Samlet omsetning, uttak og innførsel"]
[null,null,"Samlet omsetning og uttak utenfor mvaloven",null,null,{"$f":"+F22","v":0},{"$f":"+G22","v":0},0,0,0,0,{"$f":"SUM(F12:K12)","v":0}]
[null,null,"Samlet omsetning og uttak innenfor mvaloven og innførsel",null,null,{"$f":"+F15+F17+F19+F21+F23","v":0},{"$f":"+G15+G17+G19+G21+G23","v":0},0,0,0,0,{"$f":"SUM(F13:K13)","v":0}]
[null,null,"B. Innenlands salg av varer og tjenester"]
[null,3,"Salg av varer og tjenester - Grunnlag 25%",null,null,null,null,null,null,null,null,{"$f":"SUM(F15:K15)","v":0}]
[null,null,"Beregnet avgift",0.25,null,{"$f":"F15*$D$16","v":0},{"$f":"G15*$D$16","v":0},0,0,0,0,{"$f":"SUM(F16:K16)","v":0}]
[null,31,"Salg av varer og tjenester - Grunnlag 15%",null,null,null,null,null,null,null,null,{"$f":"SUM(F17:K17)","v":0}]
[null,null,"Beregnet avgift",0.15,null,{"$f":"F17*$D$18","v":0},{"$f":"G17*$D$18","v":0},0,0,0,0,{"$f":"SUM(F18:K18)","v":0}]
[null,33,"Salg av varer og tjenester - Grunnlag 12%",null,null,null,null,null,null,null,null,{"$f":"SUM(F19:K19)","v":0}]
[null,null,"Beregnet avgift",0.12,null,{"$f":"F19*$D$20","v":0},{"$f":"G19*$D$20","v":0},0,0,0,0,0]
[null,5,"Innenlands omsetning fritatt for merverdiavgift - Grunnlag 0%",0,null,null,null,null,null,null,null,0]
[null,6,"Innenlands omsetning unntatt fra merverdiavgiftsloven",null,null,null,null,null,null,null,null,0]
[null,52,"Salg av varer og tjenester i Norge (eksport) - Grunnlag 0%",0,null,null,null,null,null,null,null,{"$f":"SUM(F23:K23)","v":0}]
[null,null,"Sum merverdiavgift skyldig (+) / tilgode (-) fra innenlandsk salg av varer og tjenester",null,null,{"$f":"+F16+F18+F20","v":0},{"$f":"+G16+G18+G20","v":0},0,0,0,0,0]
[null,null,"C. Innenlandsk uttak av varer og tjenester"]
[null,"3U","Uttak av varer - Grunnlag 25%",null,null,null,null,null,null,null,null,{"$f":"SUM(F26:K26)","v":0}]
[null,null,"Beregnet avgift",0.25,null,{"$f":"F26*$D$27","v":0},{"$f":"G26*$D$27","v":0},0,0,0,0,{"$f":"SUM(F27:K27)","v":0}]
[null,"31U","Uttak av varer - Grunnlag 15%",null,null,null,null,null,null,null,null,{"$f":"SUM(F28:K28)","v":0}]
[null,null,"Beregnet avgift",0.15,null,{"$f":"F28*$D$29","v":0},{"$f":"G28*$D$29","v":0},0,0,0,0,{"$f":"SUM(F29:K29)","v":0}]
[null,"33U","Uttak av tjenester - Grunnlag 12%",null,null,null,null,null,null,null,null,{"$f":"SUM(F30:K30)","v":0}]
[null,null,"Beregnet avgift",0.12,null,{"$f":"F30*$D$31","v":0},{"$f":"G30*$D$31","v":0},0,0,0,0,0]
[null,"5U","Innenlands uttak fritatt for merverdiavgift - Grunnlag 0%",0,null,null,null,null,null,null,null,{"$f":"SUM(F32:K32)","v":0}]
[null,"6U","Innenlands uttak unntatt fra merverdiavgiftsloven",null,null,null,null,null,null,null,null,0]
[null,null,"Sum merverdiavgift skyldig (+) / tilgode (-) fra innenlandsk uttak av varer og tjenester",null,null,{"$f":"+F27+F29+F31","v":0},{"$f":"+G27+G29+G31","v":0},0,0,0,0,0]
[null,null,"D.Kjøp av varer og tjenester i Norge"]
[null,1,"Fradragsberettiget innenlands inngående mva 25%","negativt fortegn",null,null,null,null,null,null,null,{"$f":"SUM(F36:K36)","v":0}]
[null,11,"Fradragsberettiget innenlands inngående mva 15%","negativt fortegn",null,null,null,null,null,null,null,0]
[null,13,"Fradragsberettiget innenlands inngående mva 12%","negativt fortegn",null,null,null,null,null,null,null,0]
[null,"1J","Justering av inngående merverdiavgift 25%","negativt fortegn = til gode",null,null,null,null,null,null,null,0]
[null,"1T","Tap på fordringer 25%","negativt fortegn",null,null,null,null,null,null,null,0]
[null,"11T","Tap på fordringer 15%","negativt fortegn",null,null,null,null,null,null,null,0]
[null,"13T","Tap på fordringer 12%","negativt fortegn",null,null,null,null,null,null,null,0]
[null,"1TF","Tilbakeføring av inngående mva for fast eiendom 25%","negativt fortegn",null,null,null,null,null,null,null,0]
[null,"1TP","Tilbakeføring av inngående mva for personkjøretøy 25%","negativt fortegn",null,null,null,null,null,null,null,0]
[null,null,"Sum merverdiavgift skyldig (+) / tilgode (-) fra kjøp av varer og tjenester i Norge",null,null,{"$f":"SUM(F36:F44)","v":0},{"$f":"SUM(G36:G44)","v":0},0,0,0,0,0]
[null,null,"E.Kjøp av varer og tjenester fra utlandet (import)"]
[null,14,"Fradragsberettiget innførselsavgift 25%","negativt fortegn",null,null,null,null,null,null,null,{"$f":"SUM(F47:K47)","v":0}]
[null,15,"Fradragsberettiget innførselsavgift 15%","negativt fortegn",null,null,null,null,null,null,null,0]
[null,81,"Beregnet avgift - varer kjøpt fra utlandet med omvendt avgiftsplikt med fradragsrett, 25% - utgående","positivt fortegn"]
[null,81,"Beregnet avgift - varer kjøpt fra utlandet med omvendt avgiftsplikt med fradragsrett, 25% - inngående","negativt fortegn",null,null,null,null,null,null,null,0]
[null,"81J","Justering av inngående innførselsmerverdiavgift 25%","negativt fortegn = til gode",null,null,null,null,null,null,null,0]
[null,"81TF","Tilbakeføring av inngående innførselsmerverdiavgift for fast eiendom 25%","negativt fortegn",null,null,null,null,null,null,null,0]
[null,"81TP","Tilbakeføring av inngående innførselsmerverdiavgift for personkjøretøy 25%","negativt fortegn",null,null,null,null,null,null,null,0]
[null,82,"Beregnet avgift varer kjøpt fra utlandet med omvendt avgiftsplikt uten fradragsrett, 25 % - utgående","positivt fortegn",null,null,null,null,null,null,null,0]
[null,83,"Beregnet avgift varer kjøpt fra utlandet med omvendt avgiftsplikt med fradragsrett, 15% - utgående","positivt fortegn",null,null,null,null,null,null,null,0]
[null,83,"Beregnet avgift varer kjøpt fra utlandet med omvendt avgiftsplikt med fradragsrett, 15% - inngående","negativt fortegn",null,null,null,null,null,null,null,0]
[null,84,"Beregnet avgift varer kjøpt fra utlandet med omvendt avgiftsplikt uten fradragsrett, 15 % - utgående","positivt fortegn",null,null,null,null,null,null,null,0]
[null,86,"Beregnet avgift - tjenester kjøpt fra utlandet med omvendt avgiftsplikt med fradragsrett, 25% - utgående","positivt fortegn",null,null,null,null,null,null,null,{"$f":"SUM(F58:K58)","v":0}]
[null,86,"Beregnet avgift - tjenester kjøpt fra utlandet med omvendt avgiftsplikt med fradragsrett, 25% - inngående","negativt fortegn",null,null,null,null,null,null,null,{"$f":"SUM(F59:K59)","v":0}]
[null,87,"Beregnet avgift tjenester kjøpt fra utlandet med omvendt avgiftsplikt uten fradragsrett, 25 % - utgående","positivt fortegn",null,null,null,null,null,null,null,{"$f":"SUM(F60:K60)","v":0}]
[null,88,"Beregnet avgift tjenester kjøpt fra utlandet med omvendt avgiftsplikt med fradragsrett, 12% - utgående","positivt fortegn",null,null,null,null,null,null,null,0]
[null,88,"Beregnet avgift tjenester kjøpt fra utlandet med omvendt avgiftsplikt med fradragsrett, 12% - inngående","negativt fortegn",null,null,null,null,null,null,null,0]
[null,89,"Beregnet avgift tjenester kjøpt fra utlandet med omvendt avgiftsplikt uten fradragsrett, 12 % - utgående","positivt fortegn",null,null,null,null,null,null,null,0]
[null,null,"Sum merverdiavgift skyldig (+) / tilgode (-) fra kjøp av varer og tjenester fra utlandet (import)",null,null,{"$f":"SUM(F47:F63)","v":0},{"$f":"SUM(G47:G63)","v":0},0,0,0,0,0]
[null,null,"F. Fisk mv."]
[null,12,"Fradragsberettiget innenlands inngående mva 11,11%","negativt fortegn",null,null,null,null,null,null,null,0]
[null,"12T","Tap på fordringer 11,11%","negativt fortegn",null,null,null,null,null,null,null,0]
[null,32,"Utgående merverdiavgift 11,11%","positivt fortegn",null,null,null,null,null,null,null,0]
[null,null,"Sum merverdiavgift skyldig (+) / tilgode (-) fra kjøp og salg av fisk 11,11%",null,null,{"$f":"SUM(F66:F68)","v":0},{"$f":"SUM(G51:G68)-G53-G62","v":0},{"$f":"SUM(H51:H68)-H53-H62","v":0},{"$f":"SUM(I51:I68)-I53-I62","v":0},{"$f":"SUM(J51:J68)-J53-J62","v":0},{"$f":"SUM(K51:K68)-K53-K62","v":0},0]
[]
[null,"19. Å betale (+)/tilgode (-)",null,null,"=",{"$f":"+F16+F18+F20+F27+F29+F31+F45+F64+F69","v":0},0,0,0,0,0,{"$f":"SUM(F71:K71)","v":0}]
[]
[null,"Skyldig (+)/tilgode (-) iflg regnskap",null,null,"–",null,null,null,null,null,null,{"$f":"SUM(F73:K73)","v":0}]
[null,"Øredifferanser",null,null,null,null,null,null,null,null,null,{"$f":"SUM(F74:K74)","v":0}]
[null,"Differanse ",null,null,"=",{"$f":"F71-F73+F74","v":0},{"$f":"G71-G73+G74","v":0},0,0,0,0,{"$f":"ROUND(SUM(F75:K75),2)","v":0}]
[]
[null,"Betalt/mottatt",null,null,"b.nr."]
[null,null,null,null,"dato"]
[]
[]
[]
[null,"2) Avstemming mva skyldig/til gode pr 6. termin"]
[null,"Kontonr","Kontonavn",null,"Beløp på konto",null,"Skyldig/til gode mva iht skattemelding 6. termin:","Differanse mellom beløp bokført på konto og beløp iht. 6. terminoppgave","Kommentar"]
[]
[]
[null,null,null,null,null,null,{"$f":"K71","v":0},{"$f":"+E86-G86","v":0}]

{"sheet":"MVA utgående avgift","index":24,"n_rows":39,"n_cols":9,"rows_kept":39,"cut":false,"hidden":true,"merged":[[38,1,38,8],[39,1,41,8],[0,1,1,8],[35,1,35,2],[34,1,34,2],[33,1,33,2],[3,1,4,8]]}
[null,"MVA UTGÅENDE AVGIFT"]
[]
[]
[null,"Veiledning: \nLegg inn alle salgskonti i tabell nedenfor, spesifiser beløp på de ulike avgiftsområdene. Kreditbeløp på salgskonti legges inn med negativt fortegn. Differanser må forklares. \nMerk at uttaks-mva ikke er hensyntatt i denne tabellen."]
[]
[]
[null,"Kontonr.","Kontonavn","Oms. utenfor mval.","Avgiftsfri oms.","Avg. pl. 25 %","Avg. pl. 15 %","Avg. pl. 12 %","Sum omsetning"]
[null,null,null,null,null,null,null,null,{"$f":"SUM(E8:H8)","v":0}]
[null,null,null,null,null,null,null,null,{"$f":"SUM(E9:H9)","v":0}]
[null,null,null,null,null,null,null,null,0]
[null,null,null,null,null,null,null,null,0]
[null,null,null,null,null,null,null,null,0]
[null,null,null,null,null,null,null,null,0]
[null,null,null,null,null,null,null,null,0]
[null,null,null,null,null,null,null,null,0]
[null,null,null,null,null,null,null,null,0]
[null,null,null,null,null,null,null,null,0]
[null,null,null,null,null,null,null,null,0]
[null,null,null,null,null,null,null,null,0]
[null,null,null,null,null,null,null,null,0]
[null,null,null,null,null,null,null,null,0]
[null,null,null,null,null,null,null,null,0]
[null,null,null,null,null,null,null,null,0]
[null,null,null,null,null,null,null,null,0]
[null,null,null,null,null,null,null,null,0]
[null,null,null,null,null,null,null,null,0]
[null,null,null,null,null,null,null,null,0]
[null,null,null,null,null,null,null,null,0]
[null,null,null,null,null,null,null,null,0]
[null,null,null,null,null,null,null,null,0]
[null,null,null,null,null,null,null,null,0]
[null,null,null,null,null,null,null,null,0]
[null,null,null,null,null,null,null,null,0]
[null,"Sum omsetning",null,{"$f":"SUM(D8:D33)","v":0},{"$f":"SUM(E8:E33)","v":0},{"$f":"SUM(F8:F33)","v":0},{"$f":"SUM(G8:G33)","v":0},{"$f":"SUM(H8:H33)","v":0},0]
[null,"Ihht. Innsendte terminoppgaver",null,{"$f":"-'MVA totalavstemming'!L22","v":0},{"$f":"-'MVA totalavstemming'!L21-'MVA totalavstemming'!L23","v":0},{"$f":"-'MVA totalavstemming'!L15","v":0},{"$f":"-'MVA totalavstemming'!L17","v":0},{"$f":"-'MVA totalavstemming'!L19","v":0},{"$f":"SUM(D35:H35)","v":0}]
[null,"Differanse",null,{"$f":"+D34-D35","v":0},{"$f":"+E34-E35","v":0},{"$f":"+F34-F35","v":0},{"$f":"+G34-G35","v":0},{"$f":"+H34-H35","v":0},{"$f":"+I34-I35","v":0}]
[]
[]
[null,"Note avvik utgående avgift"]

{"sheet":"MVA inngående avgift","index":25,"n_rows":15,"n_cols":3,"rows_kept":15,"cut":false,"hidden":true,"merged":[[0,1,1,2],[3,1,4,2]]}
[null,"MVA INNGÅENDE AVGIFT"]
[]
[]
[null,"Veiledning: \nLegg inn inngående avgift fra systemgenerert mva-rapport, avstemmes mot innsendte terminoppgaver. "]
[]
[]
[null,"Sammendrag innsendte terminoppgaver","Sum"]
[null,"Inngående avgift høy sats (hentes fra totalavstemming)",{"$f":"+'MVA totalavstemming'!L36+'MVA totalavstemming'!L40+'MVA totalavstemming'!L43+'MVA totalavstemming'!L44+'MVA totalavstemming'!L47+'MVA totalavstemming'!L50+'MVA totalavstemming'!L51+'MVA totalavstemming'!L52+'MVA totalavstemming'!L53","v":0}]
[null,"Inngående avgift middels sats (hentes fra totalavstemming)",{"$f":"+'MVA totalavstemming'!L37+'MVA totalavstemming'!L41","v":0}]
[null,"Inngående avgift lav sats (hentes fra totalavstemming)",{"$f":"+'MVA totalavstemming'!L38+'MVA totalavstemming'!L42","v":0}]
[null,"Inngående avgift iht systemgenerert mva-rapport"]
[null,"Inngående avgift høy sats"]
[null,"Inngående avgift middels sats"]
[null,"Inngående avgift lav sats"]
[null,"Differanse",{"$f":"C8+C9+C10-C12-C13-C14","v":0}]

{"sheet":"Langsiktig gjeld","index":26,"n_rows":64,"n_cols":9,"rows_kept":64,"cut":false,"hidden":true,"merged":[[33,1,35,5],[32,1,32,5],[8,1,8,8],[3,1,6,8],[0,1,1,8],[9,1,10,1],[9,2,10,2],[9,3,10,3],[9,5,10,5],[9,8,10,8],[62,1,62,5],[63,1,65,5],[38,1,38,8],[39,1,40,1],[39,2,40,2],[39,3,40,3],[39,5,40,5],[39,8,40,8]]}
[null,"LANGSIKTIG GJELD"]
[]
[]
[null,"Veiledning: \n1. Fyll inn tabell for langsiktig gjeld mot bankforbindelse, underliggende dokumentasjon for både lån og tilhørende renter legges med årsoppgjørspakken, nummerer dokumentasjonen og gi henvisning i tabellen nedenfor. Avstem rentekostnader iht underliggende dokumentasjon mot tilhørende rentekostnader bokført i hovedbok. Ved avvik, angi notehenvisning.\n2. Fyll inn tilsvarende for langsiktig gjeld mot andre enn bankforbindelser."]
[]
[]
[]
[]
[null,"1) Spesifikasjon av langsiktig gjeld mot bankforbindelser"]
[null,"Kontonr\nhovedbok","Kontonavn","Saldo HB","Saldo iht underliggende dokumentasjon","Avvik mellom HB og underliggende dokumentasjon","Renter inneværende år iht underliggende dokumentasjon","Kommentar","Vedleggs-henvisning (både lån og renteberegning)"]
[]
[null,null,null,null,null,{"$f":"D12-E12","v":0}]
[null,null,null,null,null,{"$f":"D13-E13","v":0}]
[null,null,null,null,null,0]
[null,null,null,null,null,0]
[null,null,null,null,null,0]
[null,null,null,null,null,0]
[null,null,null,null,null,0]
[null,null,null,null,null,0]
[null,null,null,null,null,0]
[null,null,null,null,null,0]
[null,null,null,null,null,0]
[null,null,null,{"$f":"SUM(D12:D22)","v":0},{"$f":"SUM(E12:E22)","v":0},{"$f":"SUM(F12:F22)","v":0},{"$f":"SUM(G12:G22)","v":0}]
[]
[null,null,null,null,"Bokførte rentekostnader i HB knyttet til langsiktig lån mot bankforbindelser"]
[null,null,null,null,"Konto XX"]
[null,null,null,null,"Konto XX"]
[null,null,null,null,"Sum bokførte rentekostnader",null,{"$f":"G26+G27","v":0}]
[null,null,null,null,"Avvik",null,{"$f":"G23-G28","v":0}]
[null,null,null,null,"Notehenvisning for eventuelle åpne poster"]
[]
[]
[null,{"$f":"\"Note \"&G30","v":"Note "}]
[null,"Avvik mellom rentekostnader HB og renter iht underliggende dokumentasjon skyldes:"]
[]
[]
[]
[]
[null,"2) Spesifikasjon av langsiktig gjeld mot andre enn bankforbindelser"]
[null,"Kontonr","Kontonavn","Saldo HB","Saldo iht underliggende dokumentasjon","Avvik mellom HB og underliggende dokumentasjon","Renter inneværende år iht underliggende dokumentasjon","Kommentar","Vedleggs-henvisning (både lån og renteberegning)"]
[]
[null,null,null,null,null,{"$f":"D42-E42","v":0}]
[null,null,null,null,null,{"$f":"D43-E43","v":0}]
[null,null,null,null,null,0]
[null,null,null,null,null,0]
[null,null,null,null,null,0]
[null,null,null,null,null,0]
[null,null,null,null,null,0]
[null,null,null,null,null,0]
[null,null,null,null,null,0]
[null,null,null,null,null,0]
[null,null,null,null,null,0]
[null,null,null,{"$f":"SUM(D42:D52)","v":0},{"$f":"SUM(E42:E52)","v":0},{"$f":"SUM(F42:F52)","v":0},{"$f":"SUM(G42:G52)","v":0}]
[]
[null,null,null,null,"Bokførte rentekostnader i HB knyttet til langsiktig lån mot andre enn bankforbindelser"]
[null,null,null,null,"Konto XX"]
[null,null,null,null,"Konto XX"]
[null,null,null,null,"Sum bokførte rentekostnader",null,{"$f":"G56+G57","v":0}]
[null,null,null,null,"Avvik",null,{"$f":"G53-G58","v":0}]
[null,null,null,null,"Notehenvisning for eventuelle åpne poster"]
[]
[]
[null,{"$f":"\"Note \"&G60","v":"Note "}]
[null,"Avvik mellom rentekostnader HB og renter iht underliggende dokumentasjon skyldes:"]

{"sheet":"Egenkapital","index":27,"n_rows":12,"n_cols":9,"rows_kept":12,"cut":false,"hidden":true,"merged":[[0,1,1,8],[3,1,4,8]]}
[null,"EGENKAPITAL"]
[]
[]
[null,"Veiledning: \n1. Fyll inn tabellen for egenkapitaltransaksjoner gjennom året, spesifisert på konti."]
[]
[]
[null,"Egenkapital","Aksjekapital","Overkurs","Annen innskutt egenkapital","Annen egenkapital","(Kontonavn)","Total","Kommentar"]
[null,"IB 01.01.",null,null,null,null,null,{"$f":"SUM(C8:G8)","v":0}]
[null,"Årets resultat",null,null,null,null,null,{"$f":"SUM(C9:G9)","v":0}]
[null,"Utdelt utbytte",null,null,null,null,null,0]
[null,"Andre (spesifiser)",null,null,null,null,null,0]
[null,"UB 31.12.",{"$f":"SUM(C8:C11)","v":0},0,0,0,0,0]

{"sheet":"Input til formler","index":28,"n_rows":3,"n_cols":3,"rows_kept":3,"cut":false,"hidden":true,"merged":[]}
["Ja",null,"%"]
["Nei",null,"Vurdering "]
[null,null,"Begge"]